Cogmind - Beta 16 *** ADVENTURER MODE // 2025.12.21 @ 15:17:41 Player: Gentle Jesus Result: Core destroyed Performance ------------- Evolutions (8) 4000 Regions Visited (32) 6400 Robots Destroyed (167) 835 Value Destroyed (6426) 6426 Prototype IDs (47) 940 Alien Tech Used (14) 2800 Bonus (26321) 26321 TOTAL SCORE: 47722 Bonus ------- Triggered Max Security 1000 High Alert Combat Kills 673 Follower Combat Kills 4502 Entered DSFs 500 Network Hubs Disabled 400 Met Zhirov 300 Met Warlord at Base 500 MAIN.C Attacked Warlord 500 Built Enhanced Grunts 300 A7 Reached Mainframe 300 Met R17 at Cetus 500 Found Hidden Lab 3000 Used Core Reset Matrix 3000 Met Warlord at Research 2000 Invited to Help at Command 2000 Scanned by Researcher 500 Pursued by Intercept 1500 Met Sigix 2000 Activated Exoskeleton 3000 Friendly Fire -154 Cogmind --------- Core Integrity 0/1450 Matter 295/300 Energy 100/100 System Corruption 11% Temperature Cool (0) Movement Hovering (106) Ox1 Location -2/Section 7 Parts ------- > --- POWER (2) -------- (None) > --- PROPULSION (7) --- Improved Gyrokinetic Inverter Improved Gyrokinetic Inverter > --- UTILITY (10) ----- Large Storage Unit Improved Signal Interpreter Advanced Target Analyzer Microwarp Drive > --- WEAPON (4) ------- Sigix Sheargun > --- INVENTORY (17) --- Light Antimatter Reactor Micro Antimatter Reactor Light Quantum Reactor Light Quantum Reactor Light Quantum Reactor Advanced Heat Sink Subatomic Replicator Sigix Sheargun Enhanced Hardcell Cannon Advanced Remote Datajack Peak State ------------ > --- POWER ------------ Antimatter Reactor Light Antimatter Reactor > --- PROPULSION ------- Gravmag Array Gyrokinetic Inverter Cooled Antigrav System Cooled Antigrav System Cooled Antigrav System Combat Antigrav System > --- UTILITY ---------- Advanced Heat Sink Large Storage Unit Advanced Sensor Array Improved Signal Interpreter Medium Regenerative Plating Phase Redirector Ghost Barrier LC Capacitor > --- WEAPON ----------- Enhanced Quantum Rifle Core Cannon Power Maul > --- INVENTORY -------- Light Antimatter Reactor Light Quantum Reactor Gravmag Array Transdimensional Reconstructor High-powered Transdimensional Reconstructor Core Regenerator Subatomic Replicator Sigix Terminator Guided Remote Datajack [Rating: 204] Favorites ----------- Power Ion Engine Engine Ion Engine Power Core Neutrino Core Reactor Fusion Reactor Propulsion Light Treads Treads Light Treads Leg Carbon-fiber Leg Hover Unit Cooled Antigrav System Flight Unit Nuclear Pulse Thruster Utility Small Storage Unit Device Seismic Detector Storage Small Storage Unit Processor Improved Signal Interpreter Hackware Ghost Barrier Protection Centrium Medium Armor Plating Artifact LC Capacitor Weapon EM Pulse Gun Energy Gun EM Pulse Gun Energy Cannon Advanced Beam Cannon Ballistic Gun Advanced KE Penetrator Ballistic Cannon Gauss Cannon Launcher Grenade Launcher Special Weapon Mining Laser Impact Weapon Power Maul Piercing Weapon Heavy Pick Build | -11 -10 -10 -9 -9 -9 -8 -8 -7 -7 -6 -6 -6 -6 -6 -5 -5 -5 -5 -5 -5 -4 -4 -4 -4 -4 -3 -3 -3 -3 -2 -2 -2 ------- Run | Yrd Mat Min Mat Min Exi Min Mat Fac DSF Fac Ext Cet Arc Hub Fac Was Fac Upp Upp Zhi Pro Fac Upp Upp War Pro Res Arm Lab Res Qua Sec Slots Evolved 16 | . . . 2 . . . 2 2 . 2 . . . . 2 . . . . . . 2 . . . . 2 . . 2 . . Power 1 | . . . . . . . . 1 . . . . . . . . . . . . . . . . . . . . . . . . Propulsion 5 | . . . 1 . . . 1 1 . . . . . . 1 . . . . . . . . . . . . . . 1 . . Utility 8 | . . . 1 . . . 1 . . 2 . . . . . . . . . . . 1 . . . . 2 . . 1 . . Weapon 2 | . . . . . . . . . . . . . . . 1 . . . . . . 1 . . . . . . . . . . Parts Attached 251 | 9 5 3 9 1 . . 18 . 9 9 21 4 4 9 13 10 4 5 3 5 1 9 . 1 6 . 7 1 8 15 21 41 Power 35 | 1 . 1 1 . . . 3 . 1 1 3 . 1 1 3 . . 1 1 1 . 1 . . . . 2 . 1 2 4 6 Engine 12 | 1 . 1 1 . . . 2 . 1 1 2 . . 1 1 . . . 1 . . . . . . . . . . . . . Core 7 | . . . . . . . 1 . . . 1 . 1 . 2 . . 1 . . . 1 . . . . . . . . . . Reactor 16 | . . . . . . . . . . . . . . . . . . . . 1 . . . . . . 2 . 1 2 4 6 Propulsion 78 | 2 4 1 4 . . . 8 . 5 . 9 . 1 5 6 4 2 . . 3 . 3 . . 1 . 2 . 3 5 3 7 Treads 2 | 2 . . . . . . . . . . . . . . . . . . . . . . . . . . . . . . . . Leg 33 | . 4 1 4 . . . 3 . . . 5 . 1 5 6 4 . . . . . . . . . . . . . . . . Wheel . | . . . . . . . . . . . . . . . . . . . . . . . . . . . . . . . . . Hover 32 | . . . . . . . 5 . . . . . . . . . . . . 3 . 3 . . 1 . 2 . 3 5 3 7 Flight 11 | . . . . . . . . . 5 . 4 . . . . . 2 . . . . . . . . . . . . . . . Utility 84 | 3 . . 1 1 . . 5 . 1 5 3 3 2 1 2 5 2 3 2 1 1 4 . . 3 . 2 . 2 5 8 19 Device 36 | 2 . . . 1 . . 1 . . 2 . . . . 2 4 1 1 1 . 1 3 . . . . . . . 2 5 10 Storage 10 | 1 . . . . . . 1 . . . 1 . . 1 . . . . . 1 . . . . . . 1 . . 3 . 1 Processor 17 | . . . 1 . . . 2 . . 2 1 . . . . 1 1 2 1 . . . . . . . . . . . . 6 Hackware 8 | . . . . . . . 1 . 1 . 1 . 1 . . . . . . . . . . . 3 . . . . . 1 . Protection 10 | . . . . . . . . . . 1 . 3 1 . . . . . . . . 1 . . . . 1 . 1 . 1 1 Artifact 3 | . . . . . . . . . . . . . . . . . . . . . . . . . . . . . 1 . 1 1 Weapon 54 | 3 1 1 3 . . . 2 . 2 3 6 1 . 2 2 1 . 1 . . . 1 . 1 2 . 1 1 2 3 6 9 Energy Gun 16 | 2 1 . . . . . . . . 1 2 . . 2 . . . 1 . . . . . . 1 . 1 . 1 . 1 3 Energy Cannon 14 | . . . 2 . . . 2 . 1 1 . . . . . . . . . . . . . 1 . . . . 1 1 2 3 Ballistic Gun 6 | . . 1 . . . . . . . . 1 1 . . 2 . . . . . . . . . . . . . . . 1 . Ballistic Cannon 5 | . . . . . . . . . . . 2 . . . . . . . . . . . . . . . . . . 1 . 2 Launcher 5 | . . . 1 . . . . . 1 . . . . . . 1 . . . . . 1 . . . . . . . . 1 . Special Weapon 3 | 1 . . . . . . . . . . . . . . . . . . . . . . . . . . . . . . 1 1 Impact Weapon 2 | . . . . . . . . . . 1 . . . . . . . . . . . . . . . . . 1 . . . . Slashing Weapon . | . . . . . . . . . . . . . . . . . . . . . . . . . . . . . . . . . Piercing Weapon 3 | . . . . . . . . . . . 1 . . . . . . . . . . . . . 1 . . . . 1 . . Special Melee Weapon . | . . . . . . . . . . . . . . . . . . . . . . . . . . . . . . . . . Unidentified Prototypes 37 | . . . 1 1 . . 1 . . 1 . 2 1 2 2 1 . . . 3 . 2 . . 5 . . 1 4 2 4 4 Corrupted Parts 1 | . . . . . . . . . . . . . . 1 . . . . . . . . . . . . . . . . . . System Corruption 5 | . . . . . . . . . . . . . . 5 . . . . . . . . . . . . . . . . . . Parts Lost 80 | . . 1 . . . . 7 . 2 . 9 . . 9 . 8 . . 1 . 1 . . . . . 4 1 11 . 7 19 Power 15 | . . . . . . . . . 1 . 2 . . 3 . 1 . . . . . . . . . . 1 . 2 . 2 3 Propulsion 32 | . . . . . . . 5 . 1 . 4 . . 1 . 3 . . 1 . . . . . . . 2 1 4 . 1 9 Utility 24 | . . . . . . . 1 . . . 2 . . 3 . 3 . . . . 1 . . . . . . . 4 . 4 6 Weapon 9 | . . 1 . . . . 1 . . . 1 . . 2 . 1 . . . . . . . . . . 1 . 1 . . 1 Highest Loss Streak 8 | . . 1 . . . . 2 . 2 . 8 . . 8 . 6 . . 1 . 1 . . . . . 2 1 6 . 2 7 To Critical Strikes . | . . . . . . . . . . . . . . . . . . . . . . . . . . . . . . . . . Average Backups 7 | 6 7 7 7 8 8 8 6 6 5 9 7 8 10 12 8 5 4 4 5 5 6 8 9 9 9 10 10 13 8 11 10 12 Power 1 | . 1 1 1 1 1 1 1 1 1 . . 1 1 2 2 . . . . . . . . . . . 1 3 1 1 2 3 Propulsion 2 | 3 2 2 2 2 2 2 . . . 4 2 1 1 3 2 1 . . . . . . 1 1 1 2 1 3 . 1 1 . Utility 2 | . 2 3 2 2 2 2 1 1 1 1 2 3 4 4 3 3 4 4 4 4 4 4 4 4 4 4 3 3 3 3 1 2 Weapon 1 | 1 2 1 2 3 3 3 3 4 3 2 1 2 2 2 . 1 . . 1 1 1 1 3 3 3 3 3 3 1 2 1 2 Tool/Special . | . . . . . . . . . . . . . . . . . . . . . . . . . . . . . . . . . Unused Backups 30 | . 4 . 3 . . . 3 . . 1 . . 1 . 3 2 . . . . . 2 . . 1 . 1 . . 1 2 6 Power 9 | . 1 . 1 . . . 1 . . . . . . . 1 1 . . . . . . . . . . 1 . . . . 3 Propulsion 8 | . 3 . 1 . . . . . . 1 . . . . 1 1 . . . . . . . . 1 . . . . . . . Utility 7 | . . . . . . . 1 . . . . . . . 1 . . . . . . 1 . . . . . . . 1 2 1 Weapon 4 | . . . 1 . . . 1 . . . . . . . . . . . . . . 1 . . . . . . . . . 1 Tool/Special 2 | . . . . . . . . . . . . . 1 . . . . . . . . . . . . . . . . . . 1 Average Slot Usage (%) 80 | . 99 100 99 100 100 100 90 76 78 81 90 100 100 98 96 48 19 40 53 55 63 78 84 84 85 89 81 86 62 68 78 76 Engine 3 | . 14 14 10 11 11 11 6 7 7 6 6 13 7 4 2 . . . 2 . . . . . . . . . . . . . Core 1 | . . . . . . . 2 7 3 . 1 . 4 7 7 3 . . 1 . . 3 5 5 5 5 2 . . . . . Reactor 2 | . . . . . . . . . . . . . . . . . . . . 2 5 5 5 5 5 5 6 9 7 8 7 7 Leg 10 | . 26 28 32 33 33 33 5 23 16 . 3 33 33 31 33 12 . . . . . . . . . . . . . . . . Hover 10 | . . . . . . . 23 . . . . . . . . . . . . 8 17 29 31 31 31 31 27 27 16 22 26 19 Flight 3 | . . . . . . . . . 6 33 28 . . . . . 6 11 10 2 . . . . . . . . . . . . Device 9 | . 14 14 11 11 11 11 7 . . 4 12 6 6 5 10 12 4 5 10 11 10 14 15 15 12 10 9 13 5 7 12 12 Storage 5 | . 14 14 11 11 11 11 9 7 7 6 6 6 6 6 5 . . . . 2 5 5 5 5 5 5 4 4 4 4 4 6 Processor 8 | . . . 11 11 11 11 16 15 14 10 6 6 6 6 5 9 3 15 19 20 17 10 10 10 7 5 4 4 4 4 4 12 Hackware 4 | . . . . . . . 3 7 7 6 8 13 8 6 5 . . . . . . . . . 7 15 14 14 10 8 6 4 Protection 3 | . . . . . . . . . . 4 3 5 10 13 5 . . . . . . 4 5 5 2 . 5 4 2 3 4 3 Energy Gun 2 | . 28 16 . . . . . . . 1 3 . . 5 . . . . . . 1 2 . . 1 5 . . . . 1 1 Energy Cannon 2 | . . . 10 11 11 11 16 7 7 1 . . . . . . . . . . . . . . . . . . 1 . 2 2 Ballistic Gun 1 | . . 12 5 . . . . . . . . 6 6 5 9 2 . . . . . . . . . . . . . . . . Impact Weapon 1 | . . . . . . . . . . 2 2 . . . . . . . . . . . . . . . . 1 2 4 3 3 Piercing Weapon 1 | . . . . . . . . . . . 1 . . . 4 3 3 5 5 5 3 1 5 5 5 5 4 3 . . . . Peak Build Rating 204 | 9 8 8 17 25 25 25 31 29 48 63 67 67 77 86 104 104 27 47 54 66 71 102 95 100 119 119 131 132 151 167 204 174 Average Rating 45 | 7 7 7 14 17 25 25 26 29 31 52 56 63 74 79 95 42 19 40 51 54 65 89 95 95 104 119 116 126 108 152 163 135 On Entrance 63 | . 8 8 8 17 25 25 25 26 29 42 59 57 67 77 53 104 2 27 47 44 65 66 95 95 95 119 119 123 117 125 162 160 Avg Prop Armor Cover (%) 9 | . . . . . . . 5 . . . . . . . . . 11 10 9 . . . . . 18 . . . . . . 4 Naked Turns 29 | . . . . . . . . . . . . . . . . 24 5 . . . . . . . . . . . . . . . Heaviest Build 102 | 14 14 14 20 18 18 18 27 31 35 35 42 50 62 69 70 70 4 20 20 27 29 46 44 44 51 51 66 70 96 72 102 83 Greatest Support 134 | 40 40 20 39 39 39 39 47 47 47 35 75 75 88 99 134 134 14 14 14 33 33 65 65 65 68 68 73 73 74 83 90 89 Greatest Overweight (x) 10 | . . . . . . . 3 . 3 . 10 . . . . 1 . 2 1 1 . . . . 1 . . 1 2 1 1 3 Average Overweight (x) . | . . . . . . . . . . . . . . . . . . . . . . . . . . . . . 1 . . . Largest Inventory Capacity 17 | 8 8 8 8 8 8 8 10 10 10 10 10 10 10 15 15 15 5 5 5 10 10 10 10 10 10 10 15 15 15 15 15 17 Average Capacity 9 | 7 8 8 8 8 8 8 9 10 10 10 10 10 10 14 15 6 5 5 5 7 10 10 10 10 10 10 11 15 15 15 15 16 Most Carried 17 | 8 8 8 8 8 8 8 8 6 10 10 10 10 10 15 15 14 5 5 5 7 8 10 9 9 10 10 14 14 15 15 15 17 Average Carried 8 | 6 7 7 7 8 8 8 6 6 5 9 7 8 9 12 8 5 4 4 5 5 6 8 9 8 9 10 10 13 9 14 13 15 Final Capacity 17 | 8 8 8 8 8 8 8 10 10 10 10 10 10 10 15 15 5 5 5 5 10 10 10 10 10 10 10 15 15 15 15 15 17 Final Carried 15 | 8 8 8 8 8 8 8 7 6 10 9 8 10 10 13 14 5 5 5 5 7 8 9 9 9 10 10 14 13 15 15 12 10 Class Distribution -------------------- 65% | Mutant 11% | Scavenger-Mutant 10% | Hacker-Mutant 5% | Hacker-Sprinter 3% | Wizard-Mutant Dominant Class ---------------- Mutant | -10/Materials Mutant | -10/Mines Mutant | -9/Materials Mutant | -9/Mines Mutant | -9/Exiles Mutant | -8/Mines Scout | -8/Materials Scout | -7/Factory Hacker-Mutant | -7/DSF Hacker-Scout | -6/Factory Hacker-Sprinter | -6/Extension Scavenger-Mutant | -6/Cetus Scavenger-Mutant | -6/Archives Scavenger-Mutant | -6/Hub_04(d) Scavenger-Mutant | -5/Factory Mutant | -5/Waste Mutant | -5/Factory Mutant | -5/Upper Caves Mutant | -5/Upper Caves Mutant | -5/Zhirov Mutant | -4/Proximity Caves Mutant | -4/Factory Mutant | -4/Upper Caves Mutant | -4/Upper Caves Wizard-Mutant | -4/Warlord Wizard-Mutant | -3/Proximity Caves Wizard-Mutant | -3/Research Wizard-Mutant | -3/Armory Hacker-Mutant | -3/Lab Hacker-Sprinter | -2/Research Hacker-Mutant | -2/Quarantine Hacker-Mutant | -2/Section 7 Resources | -11 -10 -10 -9 -9 -9 -8 -8 -7 -7 -6 -6 -6 -6 -6 -5 -5 -5 -5 -5 -5 -4 -4 -4 -4 -4 -3 -3 -3 -3 -2 -2 -2 ----------- Run | Yrd Mat Min Mat Min Exi Min Mat Fac DSF Fac Ext Cet Arc Hub Fac Was Fac Upp Upp Zhi Pro Fac Upp Upp War Pro Res Arm Lab Res Qua Sec Matter Collected 5282 | 310 49 67 168 44 . 67 254 . 51 51 565 190 90 338 421 166 . 216 77 . 195 . 122 23 . 68 97 . . 538 293 822 Remotely . | . . . . . . . . . . . . . . . . . . . . . . . . . . . . . . . . . Salvage Created 7067 | 99 472 154 308 41 . 53 685 . 184 100 753 71 110 914 675 323 . 72 . . 104 . 122 115 . . 487 . . 146 334 745 Parts 329 | 7 24 6 16 14 . 7 36 . 9 9 30 4 8 38 29 5 . 4 . . 6 . 3 2 . . 24 . . 2 18 28 Haulers Intercepted 8 | . 2 . . . . . 1 . . . . . . 3 1 . . . . . . . . . . . . . . 1 . . Recyclers Shooed 1 | . . . 1 . . . . . . . . . . . . . . . . . . . . . . . . . . . . . Parts Field Recycled 1 | . . . . . . . . . . . . . . . . . . 1 . . . . . . . . . . . . . . Retrieved Matter 67 | . . . . . . . . . . . . . . . . . . 67 . . . . . . . . . . . . . . Parts Self-Destructed 26 | . . . . . . . . . . . . . . . . . . 9 11 . 6 . . . . . . . . . . . Prevented 3 | . . . . . . . . . . . . . . . . . . 1 2 . . . . . . . . . . . . . Parts Restored . | . . . . . . . . . . . . . . . . . . . . . . . . . . . . . . . . . Kills | -11 -10 -10 -9 -9 -9 -8 -8 -7 -7 -6 -6 -6 -6 -6 -5 -5 -5 -5 -5 -5 -4 -4 -4 -4 -4 -3 -3 -3 -3 -2 -2 -2 ------- Run | Yrd Mat Min Mat Min Exi Min Mat Fac DSF Fac Ext Cet Arc Hub Fac Was Fac Upp Upp Zhi Pro Fac Upp Upp War Pro Res Arm Lab Res Qua Sec Combat Hostiles Destroyed 118 | 4 8 2 10 6 . 4 13 . 4 4 7 1 1 4 8 1 . 2 . . 4 . . . . . 10 . 1 . 13 11 Melee 9 | . . . . . . . . . . . 2 . . . . . . 1 . . . . . . . . 4 . 1 . 1 . Guns 41 | 4 8 2 . . . . . . . . 3 1 1 3 8 1 . 1 . . 4 . . . . . 3 . . . 2 . Cannons 37 | . . . 3 . . 1 11 . 2 4 1 . . . . . . . . . . . . . . . . . . . 5 10 AOE 27 | . . . 7 6 . 3 . . 2 . . . . 1 . . . . . . . . . . . . 3 . . . 5 . Classes Destroyed 24 | 2 5 . 2 . . . 3 . 3 . 2 . . . 1 1 . . . . . . 1 . . . 1 . . . 1 2 Worker 15 | . 2 2 1 . . . . . . . 2 . . 2 2 . . . . . . . . . . . 2 . . 1 1 . Builder 4 | . . . . . . . . . . . 1 . . 1 . . . . . . . . . . . . 2 . . . . . Tunneler 3 | 2 . . . . . . . . . . . . . . 1 . . . . . . . . . . . . . . . . . Hauler 8 | . 2 . . . . . 1 . . . . . . 3 1 . . . . . . . . . . . . . . 1 . . Recycler 5 | . . . 1 . . . . . . . 2 . . . 1 . . . . . . . . . . . 1 . . . . . Operator 3 | . . . . . . . 1 . . . . . 1 . . . . . . . . . . . . . . . . 1 . . Drone 1 | . . . . . . . . . . . . . . . . . . . . . . . . . . . 1 . . . . . Watcher 11 | . 2 . 1 . . . 1 . . . 1 . . 4 1 . . . . . . . . . . . . . . . 1 . Swarmer 48 | . 3 . 4 6 . 3 3 . . 4 1 . . 3 4 . . 2 . . 4 . . . . . 5 . . . 4 2 Grunt 25 | . 5 2 5 . . 1 7 . . . 2 . . 1 1 . . . . . . . . . . . . . . . . 1 Brawler 2 | . . . 1 . . . . . . . . . . . . . . . . . . . . . . . . . . . . 1 Duelist 1 | . . . . . . . 1 . . . . . . . . . . . . . . . . . . . . . . . . . Researcher 1 | . . . . . . . . . . . . . . . . . . . . . . . . . . . . . . . 1 . Sentry 10 | . . . . . . . 2 . . . 2 . 1 . 2 . . . . . . . . . . . 2 . . . . 1 Specialist 2 | . . . . . . . . . 2 . . . . . . . . . . . . . . . . . . . . . . . Hunter 4 | . . . . . . . . . 1 . 1 . . . . . . . . . . . . . . . . . . . 2 . Programmer 13 | . . . . . . . . . . . . . . . 1 . . . . . . . . . . . 2 . . . 7 3 Heavy 1 | . . . . . . . . . 1 . . . . . . . . . . . . . . . . . . . . . . . Behemoth 1 | . . . . . . . . . . . 1 . . . . . . . . . . . . . . . . . . . . . Compactor 1 | . . . . . . . . . . . . . . . . 1 . . . . . . . . . . . . . . . . Cetus Guard 1 | . . . . . . . . . . . . 1 . . . . . . . . . . . . . . . . . . . . Enhanced Grunt 3 | . . . . . . . . . . . . . . 3 . . . . . . . . . . . . . . . . . . Tracker 1 | . . . . . . . . . . . . . . . . . . . . . . . . . . . . . . . . 1 Investigator 1 | . . . . . . . . . . . . . . . . . . . . . . . . . . . . . . . . 1 Striker 1 | . . . . . . . . . . . . . . . . . . . . . . . . . . . . . . . . 1 Executioner 1 | . . . . . . . . . . . . . . . . . . . . . . . . . . . . . . . . 1 Decomposer 1 | . . . . . . . . . . . . . . . . . . 1 . . . . . . . . . . . . . . Packrat 2 | . . . . . . . . . . . . . . . . . . . . . . . . 2 . . . . . . . . Samaritan 3 | . . . . . . . . . . . . . . . . . . . . . . . 3 . . . . . . . . . Assembled 4 | 4 . . . . . . . . . . . . . . . . . . . . . . . . . . . . . . . . Best Kill Streak 10 | 2 3 2 10 3 . 3 5 . 3 4 2 1 2 3 7 1 . 2 . . 4 . . . . . 7 . 1 1 4 4 Combat Bots Only 7 | 1 3 2 7 3 . 3 5 . 3 4 1 1 1 2 4 1 . 2 . . 4 . . . . . 5 . 1 . 4 4 Max Kills in Single Turn 4 | 1 2 1 3 3 . 2 1 . 1 1 1 1 1 2 1 1 . 1 . . 1 . 1 1 . . 3 . 1 1 4 1 Gunslinging 1 | . 1 . . . . . . . . . . . . . . . . . . . . . . . . . . . . . . . Exploded 3 | . . . 3 3 . 2 . . 1 . . . . 1 . . . . . . . . . . . . 2 . . . 3 . Melee 1 | . . . . . . . . . . . 1 . . . . . . 1 . . . . . . . . 1 . 1 . 1 . Uniques/NPCs Destroyed 1 | . . . . . . . . . . . . . . . . . . . . . . . . . . . . . 1 . . . A5 (-3/Lab) Combat | -11 -10 -10 -9 -9 -9 -8 -8 -7 -7 -6 -6 -6 -6 -6 -5 -5 -5 -5 -5 -5 -4 -4 -4 -4 -4 -3 -3 -3 -3 -2 -2 -2 -------- Run | Yrd Mat Min Mat Min Exi Min Mat Fac DSF Fac Ext Cet Arc Hub Fac Was Fac Upp Upp Zhi Pro Fac Upp Upp War Pro Res Arm Lab Res Qua Sec Hostile Shots Fired 1300 | . 28 25 23 3 . 10 107 . 14 29 187 11 4 127 65 13 . 28 9 . 19 . . . 13 11 72 7 98 . 137 260 Missed 508 | . 8 5 15 2 . 3 35 . 5 18 102 4 1 44 20 2 . 11 5 . 6 . . . 7 4 29 4 29 . 59 90 Hits 792 | . 20 20 8 1 . 7 72 . 9 11 85 7 3 83 45 11 . 17 4 . 13 . . . 6 7 43 3 69 . 78 170 Melee 21 | . . . . . . . 2 . . . . . . . . 11 . . . . . . . . . . . . . . . 8 Projectile 771 | . 20 20 8 1 . 7 70 . 9 11 85 7 3 83 45 . . 17 4 . 13 . . . 6 7 43 3 69 . 78 162 AOE 1 | . . . . . . . . . . . . . . . . . . . . . . . . . . . . . . . . 1 Critical Strikes 53 | . . 1 . . . . 5 . 1 . 2 3 1 9 2 6 . . 1 . 1 . . . . . 4 . 4 . 5 8 Actively Blocked 2 | . . . . . . . . . . . . 1 . . . . . . . . . . . . . . . . 1 . . . Part Disruptions 1 | . . . . . . . . . . . . . . . . . . . . . . . . . . . . . . . . 1 Damage Taken 15560 | . 196 243 83 8 . 103 862 . 207 116 1014 86 56 1997 632 380 . 217 72 . 143 . . . 68 58 853 96 1630 . 2545 3895 Core 2881 | . 46 62 14 . . . 159 . 74 30 177 10 . 147 85 232 . 119 30 . 50 . . . 26 22 149 . 284 . 113 1052 Absorbed by Shields 290 | . . . . . . . . . . . 71 81 . . . . . . . . . . . . . . . . . . . 138 Redirected to Core 39 | . . . . . . . . . . . . . . . . . . . . . . . . . . . . . . . 39 . Redirected to Shielding 201 | . . . . . . . . . . . . 2 . . . . . . . . . . . . . . 46 35 118 . . . Ignored by Resistances 4077 | . 60 72 24 2 . 31 251 . 55 35 311 44 15 535 178 101 . 63 21 . 43 . . . 21 17 229 26 446 . 594 903 Regen/Repaired (Parts) 725 | . . . . . . . 18 . . . . . . . . . . . . . . 30 . . . . . . 136 395 146 . Core Remaining (%) 74 | 100 . 56 . . . 96 71 . 89 . . . . 57 . . . . . . 48 . . . . 95 . . 58 . . . Volleys Fired 481 | 19 35 18 18 3 . 6 45 . 10 12 53 14 6 42 34 10 . 4 . . 8 2 . 3 1 . 16 1 20 1 41 59 Largest 2 | 2 2 2 2 1 . 1 2 . 2 1 2 2 2 2 2 2 . 1 . . 1 1 . 1 1 . 1 1 2 1 2 2 Hottest 365 | 100 80 80 105 30 . 68 143 . 138 81 162 75 75 120 68 68 . 75 . . 75 75 . 98 225 . 45 45 274 58 365 300 Shots Fired 732 | 29 68 36 26 3 . 6 75 . 13 12 70 28 12 83 63 15 . 4 . . 8 2 . 3 1 . 16 1 25 1 44 88 Gun 459 | 23 68 36 3 . . . . . . 1 58 14 6 77 63 15 . 4 . . 8 2 . . 1 . 16 1 16 . 20 27 Cannon 239 | . . . 14 . . 1 75 . 7 11 12 14 6 6 . . . . . . . . . 3 . . . . 5 1 23 61 Launcher 28 | . . . 9 3 . 5 . . 6 . . . . . . . . . . . . . . . . . . . 4 . 1 . Special 6 | 6 . . . . . . . . . . . . . . . . . . . . . . . . . . . . . . . . Kinetic 227 | . . 12 3 . . . . . . . 24 28 12 47 63 15 . . . . . . . . . . . . . 1 2 20 Thermal 302 | 16 34 18 14 . . 1 60 . 5 12 21 . . 10 . . . 4 . . 8 2 . 3 1 . . . 19 . 33 41 Explosive 27 | . . . 9 3 . 5 . . 6 . . . . . . . . . . . . . . . . . . . 4 . . . Electromagnetic 130 | 13 34 6 . . . . 15 . 2 . 25 . . 26 . . . . . . . . . . . . . . . . 9 . Slashing 27 | . . . . . . . . . . . . . . . . . . . . . . . . . . . . . . . . 27 Entropic 19 | . . . . . . . . . . . . . . . . . . . . . . . . . . . 16 1 2 . . . Robot Hit Streak 33 | 13 10 12 4 5 . 9 27 . 23 5 10 24 33 17 13 12 . 2 . . 4 1 . . . . 7 . 14 2 23 19 Robot Miss Streak 3 | 3 1 3 2 . . . 3 . . 2 2 3 . 2 3 1 . 1 . . 2 1 . . . . 2 . 2 . 1 2 Penetration Max 1 | . . . . . . . . . . . 1 1 1 1 1 . . . . . . . . . . . 1 . . . 1 1 Secondary Targets 5 | . 1 1 . . . . . . . . . . . 1 2 . . . . . . . . . . . . . . . . . Max Gunslinging Chain 1 | . 1 1 . . . . . . . . . . . 1 1 . . . . . . . . . . . . . . . . . Shots Hit Robots 551 | 14 50 29 15 3 . 4 48 . 10 6 59 25 9 58 44 14 . 5 . . 5 1 4 2 . . 21 . 33 4 38 50 Core Hits 285 | 11 20 9 17 7 . 13 21 . 15 4 24 9 5 34 20 2 . 3 . . 4 1 3 2 . . 16 . 7 1 16 21 Critical Kills 12 | . . . . . . . 2 . . . 1 1 . 2 1 1 . . . . . . . . . . . . . . 1 3 Critical Parts Destroyed 34 | . . . . . . . . . . . 2 1 . 4 4 . . . . . . . . . . . 2 . . 2 15 4 Critical Strikes 67 | . 1 . . . . . 3 . . . 8 4 . 10 5 1 . . . . . . 1 1 . . 3 . 2 2 17 9 Burn 5 | . . . . . . . . . . . 2 . . 3 . . . . . . . . . . . . . . . . . . Meltdown 3 | . . . . . . . 2 . . . . . . . . . . . . . . . . . . . . . . . . 1 Destroy 40 | . . . . . . . . . . . 5 2 . 6 5 1 . . . . . . . . . . . . . . 15 6 Blast 5 | . . . . . . . . . . . . 2 . 1 . . . . . . . . . . . . . . . . . 2 Corrupt 2 | . 1 . . . . . 1 . . . . . . . . . . . . . . . . . . . . . . . . . Smash 4 | . . . . . . . . . . . . . . . . . . . . . . . . . . . . . . 2 2 . Impale 3 | . . . . . . . . . . . 1 . . . . . . . . . . . 1 1 . . . . . . . . Detonate 2 | . . . . . . . . . . . . . . . . . . . . . . . . . . . 2 . . . . . Sunder 3 | . . . . . . . . . . . . . . . . . . . . . . . . . . . 1 . 2 . . . Melee Attacks 142 | . . . . . . . . . . 7 8 . . . . . 4 7 3 . . 2 4 8 . . 24 2 20 19 23 11 Impact 79 | . . . . . . . . . . 7 3 . . . . . . . . . . . . . . . . 2 14 19 23 11 Slashing . | . . . . . . . . . . . . . . . . . . . . . . . . . . . . . . . . . Piercing 33 | . . . . . . . . . . . 5 . . . . . 4 7 3 . . 2 4 8 . . . . . . . . Entropic 30 | . . . . . . . . . . . . . . . . . . . . . . . . . . . 24 . 6 . . . Sneak Attacks 17 | . . . . . . . . . . . 3 . . . . . . 1 . . . . 4 2 . . 3 . . 3 1 . Combat Hostiles . | . . . . . . . . . . . . . . . . . . . . . . . . . . . . . . . . . Follow-up Attacks . | . . . . . . . . . . . . . . . . . . . . . . . . . . . . . . . . . Damage Inflicted 27050 | 181 737 349 732 304 . 335 1121 . 771 158 1673 687 275 1822 1200 394 . 183 . . 115 25 270 127 . . 2242 . 1920 322 7833 3274 Guns 7336 | 181 676 309 17 . . . . . . . 1031 323 157 1195 1200 394 . 43 . . 115 25 . . . . 435 . 456 . 390 389 Cannons 8937 | . . . 211 . . 21 1121 . 150 158 189 364 118 175 . . . . . . . . . . . . . . 136 47 3400 2847 Explosions 7140 | . 61 40 504 304 . 314 . . 621 . 50 . . 452 . . . . . . . . . . . . 681 . 321 . 3792 . Melee 3599 | . . . . . . . . . . . 403 . . . . . . 140 . . . . 270 127 . . 1126 . 1007 275 251 . Ramming 38 | . . . . . . . . . . . . . . . . . . . . . . . . . . . . . . . . 38 Kinetic 4432 | . . 88 17 . . . . . . . 366 687 275 923 1200 394 . . . . . . . . . . . . . 47 17 418 Thermal 13931 | 66 378 198 211 . . 21 843 . 125 158 555 . . 229 . . . 43 . . 115 25 . . . . 475 . 638 . 7422 2429 Explosive 2149 | . . . 504 304 . 314 . . 621 . . . . . . . . . . . . . . . . . 206 . 200 . . . Electromagnetic 2002 | 115 359 63 . . . . 278 . 25 . 349 . . 670 . . . . . . . . . . . . . . . . 143 . Impact 1247 | . . . . . . . . . . . 174 . . . . . . . . . . . . . . . . . 547 275 251 . Slashing 389 | . . . . . . . . . . . . . . . . . . . . . . . . . . . . . . . . 389 Piercing 766 | . . . . . . . . . . . 229 . . . . . . 140 . . . . 270 127 . . . . . . . . Entropic 2096 | . . . . . . . . . . . . . . . . . . . . . . . . . . . 1561 . 535 . . . Highest Corruption 23 | . 4 4 . . . . . . . . 1 1 1 23 2 12 12 12 12 12 12 . . . . . 1 1 19 . 5 11 Average Corruption 6 | . 3 4 . . . . . . . . 1 1 1 2 1 8 12 12 12 12 12 . . . . . 1 1 14 . 4 6 Corruption Purged . | . . . . . . . . . . . . . . . . . . . . . . . . . . . . . . . . . Corruption Blocked . | . . . . . . . . . . . . . . . . . . . . . . . . . . . . . . . . . Effects 198 | . 6 5 . . . . . . . . 1 5 1 17 2 8 10 28 26 3 17 . . . . . 2 . 21 . 15 31 Message Errors 54 | . 1 1 . . . . . . . . . 2 . 6 . 1 2 11 8 1 6 . . . . . . . 4 . 5 6 Matter Fused 46 | . 1 2 . . . . . . . . . . . 4 . . 5 5 7 . 6 . . . . . . . 5 . 2 9 Heat Flow Errors 23 | . . . . . . . . . . . 1 2 . 2 1 1 . 2 1 1 3 . . . . . . . 2 . 1 6 Energy Discharges 24 | . 2 1 . . . . . . . . . 1 1 2 . 2 . 2 3 . . . . . . . 1 . 3 . 5 1 Parts Rejected 6 | . . . . . . . . . . . . . . . . 2 . . . . . . . . . . . . 2 . 1 1 Parts Fused 2 | . . . . . . . . . . . . . . 1 . . . . . . . . . . . . . . 1 . . . Data Loss (minor) 15 | . . . . . . . . . . . . . . 1 . . 2 2 2 . 1 . . . . . 1 . 2 . 1 3 Data Loss (major) 9 | . 1 . . . . . . . . . . . . . . 1 . 4 1 . . . . . . . . . 2 . . . Misfires 2 | . . . . . . . . . . . . . . . 1 . . . . . . . . . . . . . . . . 1 Alerts 7 | . . 1 . . . . . . . . . . . . . . . 2 1 1 . . . . . . . . . . . 2 Misdirections 6 | . . . . . . . . . . . . . . . . 1 1 . 3 . 1 . . . . . . . . . . . Weapon Failures 4 | . 1 . . . . . . . . . . . . 1 . . . . . . . . . . . . . . . . . 2 Overload Shots 15 | . . . . . . . . . . . . . . . . . . . . . . . . . 1 . . . 14 . . . Effects 2 | . . . . . . . . . . . . . . . . . . . . . . . . . 1 . . . 1 . . . Energy Bleed 1 | . . . . . . . . . . . . . . . . . . . . . . . . . . . . . 1 . . . Heat Surge 1 | . . . . . . . . . . . . . . . . . . . . . . . . . 1 . . . . . . . Overflow Damage 3724 | . 14 . 7 . . . 7 . . 1 34 . . 5 . . . . . . . . 62 . . . 539 . 190 198 2298 369 Projectiles 1686 | . . . . . . . 7 . . 1 . . . 5 . . . . . . . . . . . . . . . . 1327 346 Explosions 1121 | . 14 . 7 . . . . . . . . . . . . . . . . . . . . . . . 245 . . . 855 . Melee 917 | . . . . . . . . . . . 34 . . . . . . . . . . . 62 . . . 294 . 190 198 116 23 Knockbacks 11 | . . . . . . . . . . . 1 . . . . . . . . . . . . . . . . . 5 2 1 2 Impact 9 | . . . . . . . . . . . 1 . . . . . . . . . . . . . . . . . 5 1 1 1 Kinetic 2 | . . . . . . . . . . . . . . . . . . . . . . . . . . . . . . 1 . 1 Secondary . | . . . . . . . . . . . . . . . . . . . . . . . . . . . . . . . . . Self-Inflicted Damage 1120 | . 30 20 . . . 30 . . . . . . . 141 . . . . . . . . . . . . . . 224 . 656 19 Shots 12 | . 1 1 . . . 3 . . . . . . . 2 . . . . . . . . . . . . . . 4 . 1 . Rammed 1 | . . . . . . . . . . . . . . . . . . . . . . . . . . . . . . . . 1 Targets Rammed 1 | . . . . . . . . . . . . . . . . . . . . . . . . . . . . . . . . 1 Kicked . | . . . . . . . . . . . . . . . . . . . . . . . . . . . . . . . . . Crushed . | . . . . . . . . . . . . . . . . . . . . . . . . . . . . . . . . . Highest Temperature 506 | 60 132 234 84 . . 24 378 . . 342 428 . . 329 45 83 . 220 86 . 49 . . . 116 . 50 . 506 311 205 322 Average Temperature 105 | 20 38 112 34 . . 8 107 . . 102 167 . . 90 45 43 . 103 45 . 24 . . . 62 . 28 . 178 195 86 55 Received Heat Transfer 2363 | . 102 180 30 . . 36 576 . . 9 579 . . 87 63 . . 27 36 . . . . . 12 . 334 9 . . 48 235 Effects 14 | . . . . . . . 4 . . . 2 . . 3 . . . 1 . . . . . . . . . . 2 2 . . Shutdowns 1 | . . . . . . . . . . . 1 . . . . . . . . . . . . . . . . . . . . . Energy Bleed 6 | . . . . . . . 1 . . . 1 . . 1 . . . 1 . . . . . . . . . . 1 1 . . Interference 5 | . . . . . . . 2 . . . . . . 2 . . . . . . . . . . . . . . . 1 . . Matter Decay 1 | . . . . . . . 1 . . . . . . . . . . . . . . . . . . . . . . . . . Short Circuit 1 | . . . . . . . . . . . . . . . . . . . . . . . . . . . . . 1 . . . Siege Activations . | . . . . . . . . . . . . . . . . . . . . . . . . . . . . . . . . . Martial Activations . | . . . . . . . . . . . . . . . . . . . . . . . . . . . . . . . . . Shielding Activations . | . . . . . . . . . . . . . . . . . . . . . . . . . . . . . . . . . Robots Disrupted 2 | . . . . . . . . . . . . . . . . . . . . . . . . . . . . . . . 2 . Combat Hostiles 2 | . . . . . . . . . . . . . . . . . . . . . . . . . . . . . . . 2 . Robots Corrupted 5 | . . . . . . . . . . . 2 . . 1 . . . . . . . . . . . . . . . 1 . 1 Combat Hostiles 1 | . . . . . . . . . . . 1 . . . . . . . . . . . . . . . . . . . . . Parts Fried 12 | . 2 1 . . . . . . . . 3 . . 3 . . . . . . . . . . . . . . . 1 . 2 Impact Corruptions 19 | . . . . . . . . . . . 2 . . . . . . . . . . . . . . . . . 4 9 3 1 Robots Melted 3 | . . . . . . . 2 . . . . . . . . . . . . . . . . . . . . . . . . 1 Combat Hostiles 3 | . . . . . . . 2 . . . . . . . . . . . . . . . . . . . . . . . . 1 Parts Melted 11 | . . . 2 . . . 5 . . 1 . . . . . . . . . . 1 . . . . . . . . . . 2 Heat Transferred 8215 | 150 800 400 333 . . 37 1443 . 185 300 938 . . 800 . . . 74 . . 185 37 . . . . 300 . 630 . 706 897 Parts Sabotaged 4 | . . . . . . . . . . . . . . . . . . . . . . . . . . . . . . . . 4 Parts Stolen . | . . . . . . . . . . . . . . . . . . . . . . . . . . . . . . . . . Parts Stripped . | . . . . . . . . . . . . . . . . . . . . . . . . . . . . . . . . . Power Chain Reactions 5 | . 1 1 . . . . . . . . 1 . . 2 . . . . . . . . . . . . . . . . . . Alert | -11 -10 -10 -9 -9 -9 -8 -8 -7 -7 -6 -6 -6 -6 -6 -5 -5 -5 -5 -5 -5 -4 -4 -4 -4 -4 -3 -3 -3 -3 -2 -2 -2 ------- Run | Yrd Mat Min Mat Min Exi Min Mat Fac DSF Fac Ext Cet Arc Hub Fac Was Fac Upp Upp Zhi Pro Fac Upp Upp War Pro Res Arm Lab Res Qua Sec Maximum Alert Level 5 | . . . 2 1 . . . . . . 1 1 . 4 2 . . . . . . 2 . . . . 2 . . . 1 5 Low Security (%) 83 | 100 100 100 66 56 . 100 100 100 100 100 84 69 100 10 . 100 100 . . . . . . . . . 71 100 . 100 48 40 Level 1 7 | . . . 27 43 . . . . . . 15 30 . 11 48 . . . . . . . . . . . 23 . . . 51 10 Level 2 3 | . . . 6 . . . . . . . . . . 13 51 . . . . . . 100 . . . . 4 . . . . . Level 3 2 | . . . . . . . . . . . . . . 49 . . . . . . . . . . . . . . . . . . Level 4 . | . . . . . . . . . . . . . . 15 . . . . . . . . . . . . . . . . . . Level 5 . | . . . . . . . . . . . . . . . . . . . . . . . . . . . . . . . . . High Security . | . . . . . . . . . . . . . . . . . . . . . . . . . . . . . . . . . Max Security 2 | . . . . . . . . . . . . . . . . . . . . . . . . . . . . . . . . 48 Peak Influence 3153 | 10 122 53 410 241 . 164 123 42 128 191 313 241 160 1274 510 110 16 . . . . 496 . . . . 401 105 . 15 369 3153 Initial 510 | . . . 4 125 . . 34 39 25 57 61 147 55 26 510 110 . . . . . 472 . . . . . 57 . . . 172 Average 138 | . 45 25 121 194 . 111 44 39 64 127 65 175 119 761 409 28 3 . . . . 455 . . . . 185 67 . . 205 1145 Influence Increases 10074 | 10 298 131 458 156 . 184 464 3 123 229 634 249 166 1863 307 . 50 95 68 . 90 499 . . . . 726 68 . 50 1079 2074 Destroy 0b10 Robot/C 4000 | . 160 80 260 120 . 120 280 . 80 80 320 160 80 580 160 . . 40 40 . 80 . . . . . 280 . . . 320 760 Destroy 0b10 Robot/NC 315 | 10 30 10 20 . . . 15 . 10 . 30 10 5 70 30 . . . . . . . . . . . 30 . . 15 15 15 Destroy Leader 804 | . 28 20 64 10 . 20 64 . 20 10 62 . . 176 34 . . 10 10 . 10 . . . . . 60 . . 2 52 152 Allied During Kill 640 | . . 3 19 7 . 8 5 . . . 25 50 42 374 2 . . . 3 . . . . . . . 14 . . . 7 81 Successful Hack 255 | . . . 14 . . . 7 3 . 18 6 6 . 10 15 . 35 . . . . 30 . . . . 54 . . . . 57 Disable Machine 603 | . . 18 36 . . 9 9 . . 9 18 . 36 180 18 . 9 . . . . . . . . . 18 . . . 81 162 Anti-Garrison Action 200 | . . . . . . . . . . . . . . 200 . . . . . . . . . . . . . . . . . . Destroy Structure 1472 | . 5 . 45 19 . 27 9 . 13 7 23 23 3 243 48 . 6 . . . . 4 . . . . 120 8 . 18 379 472 Advance Influence 450 | . . . . . . . . . . . . . . . . . . . . . . 450 . . . . . . . . . . Partial Spotted 120 | . . . . . . . . . . . 15 . . . . . . . . . . 15 . . . . 45 . . 15 15 15 Lose Combat Pursuer 1215 | . 75 . . . . . 75 . . 105 135 . . 30 . . . 45 15 . . . . . . . 105 60 . . 210 360 Influence Decreases 8298 | 10 298 118 91 385 151 80 465 64 37 211 477 386 241 745 1139 377 50 95 68 . 50 138 240 116 45 . 600 99 95 50 725 652 Entered New Map 2655 | . . . 9 255 151 . 70 64 17 71 85 156 111 65 699 267 . . . . . 18 180 46 45 . . 69 95 . . 182 Time Decay 4145 | 10 298 90 82 130 . 80 291 . . 140 316 230 90 570 270 50 50 95 68 . 40 120 60 70 . . 180 20 . 50 485 260 Lost Part 604 | . . 10 . . . . 64 . 20 . 40 . . 90 . 60 . . . . 10 . . . . . 40 10 . . 70 190 Lost Ally 294 | . . 18 . . . . 40 . . . 36 . 40 20 20 . . . . . . . . . . . 80 . . . 20 20 Purge Threat 600 | . . . . . . . . . . . . . . . 150 . . . . . . . . . . . 300 . . . 150 . Squads Dispatched 75 | . . . 3 . . . 3 . 2 . 1 . . 9 2 . 4 . . . . 1 . . . . 8 . . 3 7 32 Investigation 10 | . . . 2 . . . . . . . 1 . . 2 . . 2 . . . . 1 . . . . 2 . . . . . Extermination 10 | . . . . . . . . . . . . . . 3 1 . 1 . . . . . . . . . . . . . 4 1 Reinforcement 18 | . . . 1 . . . . . 2 . . . . 4 1 . 1 . . . . . . . . . 6 . . 2 1 . Assault 30 | . . . . . . . . . . . . . . . . . . . . . . . . . . . . . . . . 30 Garrison 4 | . . . . . . . 3 . . . . . . . . . . . . . . . . . . . . . . . 1 . Intercept 3 | . . . . . . . . . . . . . . . . . . . . . . . . . . . . . . 1 1 1 Searches Triggered . | . . . . . . . . . . . . . . . . . . . . . . . . . . . . . . . . . Construction Impeded . | . . . . . . . . . . . . . . . . . . . . . . . . . . . . . . . . . Haulers Reinforced 2 | . . . . . . . . . . . . . . . 1 . . . . . . . . . . . 1 . . . . . Active Scanning Responses . | . . . . . . . . . . . . . . . . . . . . . . . . . . . . . . . . . Cargo Convoy Interrupts . | . . . . . . . . . . . . . . . . . . . . . . . . . . . . . . . . . Stealth | -11 -10 -10 -9 -9 -9 -8 -8 -7 -7 -6 -6 -6 -6 -6 -5 -5 -5 -5 -5 -5 -4 -4 -4 -4 -4 -3 -3 -3 -3 -2 -2 -2 --------- Run | Yrd Mat Min Mat Min Exi Min Mat Fac DSF Fac Ext Cet Arc Hub Fac Was Fac Upp Upp Zhi Pro Fac Upp Upp War Pro Res Arm Lab Res Qua Sec Distress Signals 28 | . 1 . . . . . . . . . 2 2 . 4 . . . . . . 1 . . . . . 7 . . 3 3 5 Communications Jammed . | . . . . . . . . . . . . . . . . . . . . . . . . . . . . . . . . . Distress Signals . | . . . . . . . . . . . . . . . . . . . . . . . . . . . . . . . . . Times Spotted 460 | 5 16 4 19 4 . 5 28 . 4 9 29 7 4 45 10 6 3 6 9 . 9 2 . . 11 1 37 6 1 10 33 137 Peak Tracking Total 44 | 2 3 2 8 3 . 3 7 . 3 5 7 5 1 12 4 4 4 4 6 . 4 1 . . 12 1 13 8 1 5 6 44 Tactical Retreats 54 | 5 5 . . . . . 3 . . 2 5 . . 2 . 1 . 3 1 . . . . . . . 4 1 . . 12 10 Traps | -11 -10 -10 -9 -9 -9 -8 -8 -7 -7 -6 -6 -6 -6 -6 -5 -5 -5 -5 -5 -5 -4 -4 -4 -4 -4 -3 -3 -3 -3 -2 -2 -2 ------- Run | Yrd Mat Min Mat Min Exi Min Mat Fac DSF Fac Ext Cet Arc Hub Fac Was Fac Upp Upp Zhi Pro Fac Upp Upp War Pro Res Arm Lab Res Qua Sec Traps Triggered 13 | . 4 . . . . . . . . 1 5 . . 1 1 . . . . . . . . . . . . . . . 1 . Indirectly . | . . . . . . . . . . . . . . . . . . . . . . . . . . . . . . . . . Trap Hack Attempts . | . . . . . . . . . . . . . . . . . . . . . . . . . . . . . . . . . Triggered . | . . . . . . . . . . . . . . . . . . . . . . . . . . . . . . . . . Disarmed . | . . . . . . . . . . . . . . . . . . . . . . . . . . . . . . . . . Reprogrammed 5 | . . . . . . . . . . . . . . 4 . . . . . . . . . . . . 1 . . . . . Reused . | . . . . . . . . . . . . . . . . . . . . . . . . . . . . . . . . . Traps Extracted . | . . . . . . . . . . . . . . . . . . . . . . . . . . . . . . . . . Installed 2 | . . . . 2 . . . . . . . . . . . . . . . . . . . . . . . . . . . . Triggered . | . . . . . . . . . . . . . . . . . . . . . . . . . . . . . . . . . Objects Rigged 1 | . . . . . . . . . . . . . . . . . . . . . . . . . . . 1 . . . . . Exploded 1 | . . . . . . . . . . . . . . . . . . . . . . . . . . . 1 . . . . . Machines | -11 -10 -10 -9 -9 -9 -8 -8 -7 -7 -6 -6 -6 -6 -6 -5 -5 -5 -5 -5 -5 -4 -4 -4 -4 -4 -3 -3 -3 -3 -2 -2 -2 ---------- Run | Yrd Mat Min Mat Min Exi Min Mat Fac DSF Fac Ext Cet Arc Hub Fac Was Fac Upp Upp Zhi Pro Fac Upp Upp War Pro Res Arm Lab Res Qua Sec Machines Disabled 83 | . . 2 4 . . 1 1 . . 1 3 . 4 20 2 . 1 . . . . . . . 1 . 2 . 8 . 10 23 Max in Single Turn 10 | . . 2 1 . . 1 1 . . 1 . . 1 10 1 . 1 . . . . . . . 1 . 1 . 2 . 3 2 Garrison Access 1 | . . . . . . . . . . . . . . 1 . . . . . . . . . . . . . . . . . . Network Hub 2 | . . . . . . . . . . . . . . 2 . . . . . . . . . . . . . . . . . . Energy Cycler 2 | . . . . . . . . . . . 2 . . . . . . . . . . . . . . . . . . . . . Machines Repaired . | . . . . . . . . . . . . . . . . . . . . . . . . . . . . . . . . . Machines Dismantled . | . . . . . . . . . . . . . . . . . . . . . . . . . . . . . . . . . Machines Sabotaged . | . . . . . . . . . . . . . . . . . . . . . . . . . . . . . . . . . Overloaded Fab Kills . | . . . . . . . . . . . . . . . . . . . . . . . . . . . . . . . . . Hacking | -11 -10 -10 -9 -9 -9 -8 -8 -7 -7 -6 -6 -6 -6 -6 -5 -5 -5 -5 -5 -5 -4 -4 -4 -4 -4 -3 -3 -3 -3 -2 -2 -2 --------- Run | Yrd Mat Min Mat Min Exi Min Mat Fac DSF Fac Ext Cet Arc Hub Fac Was Fac Upp Upp Zhi Pro Fac Upp Upp War Pro Res Arm Lab Res Qua Sec Machines Accessed 70 | . 2 . 3 . . . 4 1 . 5 8 1 . 6 4 . 4 1 2 4 . 3 2 . 3 . 7 . 1 . 4 5 Terminals 41 | . 2 . 2 . . . 2 1 . 1 8 1 . 5 1 . 3 . . . . 2 1 . . . 6 . . . 3 3 Fabricators 5 | . . . . . . . . . . 2 . . . . 1 . 1 . . . . . . . . . 1 . . . . . Repair Stations 4 | . . . . . . . 1 . . . . . . . 1 . . . . . . 1 . . . . . . . . . 1 Recycling Units 1 | . . . . . . . . . . 1 . . . . . . . . . . . . . . . . . . . . . . Scanalyzers 6 | . . . 1 . . . 1 . . 1 . . . . 1 . . . . . . . . . . . . . . . 1 1 Garrison Access 1 | . . . . . . . . . . . . . . 1 . . . . . . . . . . . . . . . . . . Total Hacks 222 | . 4 . 6 . . . 8 1 . 11 18 1 . 15 10 . 17 1 6 17 . 17 2 . 7 . 47 . 1 . 15 18 Successful 128 | . . . 5 . . . 5 1 . 7 7 1 . 5 6 . 3 1 6 17 . 11 2 . 7 . 23 . 1 . 9 11 Failed 94 | . 4 . 1 . . . 3 . . 4 11 . . 10 4 . 14 . . . . 6 . . . . 24 . . . 6 7 Catastrophic 18 | . . . . . . . 2 . . 1 . . . 4 2 . 4 . . . . 1 . . . . 3 . . . 1 . Database Lockouts . | . . . . . . . . . . . . . . . . . . . . . . . . . . . . . . . . . Manual 84 | . 4 . 1 . . . 4 . . 1 5 1 . 11 1 . 13 . . . . 8 . . . . 30 . 2 . 3 . Terminals 133 | . 4 . 4 . . . 4 1 . 2 18 1 . 11 4 . 14 . . . . 12 1 . . . 44 . . . 10 3 Fabricators 11 | . . . . . . . . . . 3 . . . . 2 . 3 . . . . . . . . . 3 . . . . . Repair Stations 11 | . . . . . . . 2 . . . . . . . 2 . . . . . . 5 . . . . . . . . . 2 Recycling Units 3 | . . . . . . . . . . 3 . . . . . . . . . . . . . . . . . . . . . . Scanalyzers 27 | . . . 2 . . . 2 . . 3 . . . . 2 . . . . . . . . . . . . . . . 5 13 Garrison Access 4 | . . . . . . . . . . . . . . 4 . . . . . . . . . . . . . . . . . . Terminal Hacks 85 | . . . 3 . . . 1 1 . 1 6 1 . 4 2 . 2 1 6 17 . 5 2 . 7 . 18 . 1 . 4 3 Record 14 | . . . 1 . . . . . . . . . . . . . . . 5 5 . 1 1 . . . . . . . 1 . Part Schematic 5 | . . . . . . . . . . . . . . . . . . . . 4 . 1 . . . . . . . . . . Robot Schematic 1 | . . . . . . . . . . . . . . . . . . . . . . . . . . . 1 . . . . . Robot Analysis 5 | . . . . . . . . . . . . . . 1 . . . . . 4 . . . . . . . . . . . . Prototype ID Bank 9 | . . . . . . . . . . . . . . . . . . . . 4 . . . . 5 . . . . . . . Open Door 14 | . . . . . . . . . . . 5 1 . . . . . 1 1 . . . 1 . 2 . . . . . 1 2 Open DSF 1 | . . . . . . . . 1 . . . . . . . . . . . . . . . . . . . . . . . . Level Access Points 2 | . . . . . . . 1 . . . . . . . . . 1 . . . . . . . . . . . . . . . Branch Access Points 4 | . . . 1 . . . . . . . . . . . . . 1 . . . . 1 . . . . 1 . . . . . Fabricator Index 1 | . . . . . . . . . . . . . . . . . . . . . . . . . . . 1 . . . . . Repair Station Index 1 | . . . . . . . . . . . . . . . . . . . . . . . . . . . 1 . . . . . Alert Level 9 | . . . . . . . . . . 1 1 . . 1 1 . . . . . . . . . . . 4 . . . 1 . Unreport Threat 4 | . . . . . . . . . . . . . . . 1 . . . . . . . . . . . 2 . . . 1 . Reprogram Traps 2 | . . . . . . . . . . . . . . 1 . . . . . . . . . . . . 1 . . . . . Patrol Status 2 | . . . 1 . . . . . . . . . . . . . . . . . . . . . . . 1 . . . . . Recall Reinforcements 3 | . . . . . . . . . . . . . . 1 . . . . . . . . . . . . 2 . . . . . Zone Layout 6 | . . . . . . . . . . . . . . . . . . . . . . 2 . . . . 4 . . . . . Activate Exoskeleton 1 | . . . . . . . . . . . . . . . . . . . . . . . . . . . . . . . . 1 Release Object 1 | . . . . . . . . . . . . . . . . . . . . . . . . . . . . . 1 . . . Fabricator Hacks 6 | . . . . . . . . . . 2 . . . . 1 . 1 . . . . . . . . . 2 . . . . . Network Status 1 | . . . . . . . . . . . . . . . 1 . . . . . . . . . . . . . . . . . Load Schematic 1 | . . . . . . . . . . . . . . . . . . . . . . . . . . . 1 . . . . . Build 4 | . . . . . . . . . . 2 . . . . . . 1 . . . . . . . . . 1 . . . . . Repair Station Hacks 8 | . . . . . . . 2 . . . . . . . 1 . . . . . . 4 . . . . . . . . . 1 Scan Component 5 | . . . . . . . 1 . . . . . . . 1 . . . . . . 2 . . . . . . . . . 1 Repair 3 | . . . . . . . 1 . . . . . . . . . . . . . . 2 . . . . . . . . . . Recycling Unit Hacks 2 | . . . . . . . . . . 2 . . . . . . . . . . . . . . . . . . . . . . Report Inventory 1 | . . . . . . . . . . 1 . . . . . . . . . . . . . . . . . . . . . . Retrieve Components 1 | . . . . . . . . . . 1 . . . . . . . . . . . . . . . . . . . . . . Scanalyzer 20 | . . . 2 . . . 2 . . 2 . . . . 2 . . . . . . . . . . . . . . . 5 7 Retrieve Study 20 | . . . 2 . . . 2 . . 2 . . . . 2 . . . . . . . . . . . . . . . 5 7 Garrison Access Hacks . | . . . . . . . . . . . . . . . . . . . . . . . . . . . . . . . . . Unauthorized Hacks 7 | . . . . . . . . . . . 1 . . 1 . . . . . . . 2 . . . . 3 . . . . . Terminals 5 | . . . . . . . . . . . 1 . . . . . . . . . . 1 . . . . 3 . . . . . Assimilate 1 | . . . . . . . . . . . 1 . . . . . . . . . . . . . . . . . . . . . Botnet 2 | . . . . . . . . . . . . . . . . . . . . . . 1 . . . . 1 . . . . . Detonate 2 | . . . . . . . . . . . . . . . . . . . . . . . . . . . 2 . . . . . Fabricators . | . . . . . . . . . . . . . . . . . . . . . . . . . . . . . . . . . Repair Stations 1 | . . . . . . . . . . . . . . . . . . . . . . 1 . . . . . . . . . . Patch 1 | . . . . . . . . . . . . . . . . . . . . . . 1 . . . . . . . . . . Recycling Units . | . . . . . . . . . . . . . . . . . . . . . . . . . . . . . . . . . Scanalyzers . | . . . . . . . . . . . . . . . . . . . . . . . . . . . . . . . . . Garrison Access 1 | . . . . . . . . . . . . . . 1 . . . . . . . . . . . . . . . . . . Jam 1 | . . . . . . . . . . . . . . 1 . . . . . . . . . . . . . . . . . . Data Cores Recovered 3 | . . . . . . . 1 . . . . . . 1 . . . . . . . . . . . . . . . . 1 . Used . | . . . . . . . . . . . . . . . . . . . . . . . . . . . . . . . . . Hacking Detections 42 | . 2 . 3 . . . 2 . . 4 4 . . 6 4 . 2 . . . . 3 . . . . 6 . . . 3 3 Full Trace Events 6 | . . . 1 . . . . . . . 1 . . 1 . . 2 . . . . . . . . . 1 . . . . . Feedback Events 1 | . . . . . . . . . . . 1 . . . . . . . . . . . . . . . . . . . . . Corruption 1 | . . . . . . . . . . . 1 . . . . . . . . . . . . . . . . . . . . . Feedback Blocked . | . . . . . . . . . . . . . . . . . . . . . . . . . . . . . . . . . Robot Schematics Acquired 1 | . . . . . . . . . . . . . . . . . . . . . . . . . . . 1 . . . . . Robots Built 4 | . . . . . . . . . . . . . . . . . . . . . . . . . . . 4 . . . . . Authchips . | . . . . . . . . . . . . . . . . . . . . . . . . . . . . . . . . . Time 102 | . . . . . . . . . . . . . . . . . . . . . . . . . . . 102 . . . . . Total Robot Build Rating 32 | . . . . . . . . . . . . . . . . . . . . . . . . . . . 32 . . . . . Part Schematics Acquired 5 | . . . . . . . . . . . . . . . . . . . . 4 . 1 . . . . . . . . . . Parts Built 4 | . . . . . . . . . . 2 . . . . . . 2 . . . . . . . . . . . . . . . Authchips . | . . . . . . . . . . . . . . . . . . . . . . . . . . . . . . . . . Time 180 | . . . . . . . . . . 111 . . . . . . 69 . . . . . . . . . . . . . . . Total Part Build Rating 30 | . . . . . . . . . . 12 . . . . . . 18 . . . . . . . . . . . . . . . Part Studies Acquired 20 | . . . 2 . . . 2 . . 2 . . . . 2 . . . . . . . . . . . . . . . 5 7 Parts Repaired 2 | . . . . . . . 1 . . . . . . . . . . . . . . 1 . . . . . . . . . . Time 102 | . . . . . . . 26 . . . . . . . . . . . . . . 76 . . . . . . . . . . Parts Recycled . | . . . . . . . . . . . . . . . . . . . . . . . . . . . . . . . . . Recycled Matter . | . . . . . . . . . . . . . . . . . . . . . . . . . . . . . . . . . Retrieved Matter . | . . . . . . . . . . . . . . . . . . . . . . . . . . . . . . . . . Retrieved Components 3 | . . . . . . . . . . 3 . . . . . . . . . . . . . . . . . . . . . . Parts Scanalyzed . | . . . . . . . . . . . . . . . . . . . . . . . . . . . . . . . . . Part Schematics Acquired . | . . . . . . . . . . . . . . . . . . . . . . . . . . . . . . . . . Parts Damaged . | . . . . . . . . . . . . . . . . . . . . . . . . . . . . . . . . . Bothacking | -11 -10 -10 -9 -9 -9 -8 -8 -7 -7 -6 -6 -6 -6 -6 -5 -5 -5 -5 -5 -5 -4 -4 -4 -4 -4 -3 -3 -3 -3 -2 -2 -2 ------------ Run | Yrd Mat Min Mat Min Exi Min Mat Fac DSF Fac Ext Cet Arc Hub Fac Was Fac Upp Upp Zhi Pro Fac Upp Upp War Pro Res Arm Lab Res Qua Sec Used RIF Installer . | . . . . . . . . . . . . . . . . . . . . . . . . . . . . . . . . . Robots Hacked . | . . . . . . . . . . . . . . . . . . . . . . . . . . . . . . . . . Non-combat . | . . . . . . . . . . . . . . . . . . . . . . . . . . . . . . . . . Combat . | . . . . . . . . . . . . . . . . . . . . . . . . . . . . . . . . . Robot Hacks Applied . | . . . . . . . . . . . . . . . . . . . . . . . . . . . . . . . . . Relay Couplers Released . | . . . . . . . . . . . . . . . . . . . . . . . . . . . . . . . . . Fabnet Peak Effective % . | . . . . . . . . . . . . . . . . . . . . . . . . . . . . . . . . . Robots Rewired 10 | . . . . . . . . . . . 4 . . . 1 . . . . . . . . . 4 . . . . . 1 . Allies Hacked . | . . . . . . . . . . . . . . . . . . . . . . . . . . . . . . . . . Hacks Repelled . | . . . . . . . . . . . . . . . . . . . . . . . . . . . . . . . . . Allies | -11 -10 -10 -9 -9 -9 -8 -8 -7 -7 -6 -6 -6 -6 -6 -5 -5 -5 -5 -5 -5 -4 -4 -4 -4 -4 -3 -3 -3 -3 -2 -2 -2 -------- Run | Yrd Mat Min Mat Min Exi Min Mat Fac DSF Fac Ext Cet Arc Hub Fac Was Fac Upp Upp Zhi Pro Fac Upp Upp War Pro Res Arm Lab Res Qua Sec Total Allies 31 | . . 3 . . . . . . . . 10 5 . . 1 . . . 2 . . . . . 4 . 4 . . . 1 1 Largest Group 7 | . . 3 2 2 2 2 2 . . . 5 7 7 4 1 . . . 2 . . . . . 4 . 3 . . . 1 1 Highest-Rated Group 1204 | . . 40 32 32 32 32 32 . . . 224 673 673 384 45 . . . 51 . . . . . 252 . 90 . . . 69 1204 Highest-Rated Ally 1204 | . . 16 16 16 16 16 16 . . . 159 159 159 96 45 . . . 31 . . . . . 68 . 30 . . . 69 1204 Total Orders . | . . . . . . . . . . . . . . . . . . . . . . . . . . . . . . . . . Ally Attacks 413 | . . 10 36 . . 4 11 . . . 58 31 21 90 2 . . . 12 . . . . . 1 . 32 . . . 7 98 Total Damage 17907 | . . 94 414 . . 43 115 . . . 906 1316 671 3202 277 . . . 127 . . . . . 53 . 548 . . . 279 9862 Kills 98 | . . 2 4 . . 2 1 . . . 9 9 3 29 . . . . 2 . . . . . . . 5 . . . 3 29 Allies Corrupted 2 | . . . . . . . . . . . . . . 2 . . . . . . . . . . . . . . . . . . Allies Melted . | . . . . . . . . . . . . . . . . . . . . . . . . . . . . . . . . . Intel | -11 -10 -10 -9 -9 -9 -8 -8 -7 -7 -6 -6 -6 -6 -6 -5 -5 -5 -5 -5 -5 -4 -4 -4 -4 -4 -3 -3 -3 -3 -2 -2 -2 ------- Run | Yrd Mat Min Mat Min Exi Min Mat Fac DSF Fac Ext Cet Arc Hub Fac Was Fac Upp Upp Zhi Pro Fac Upp Upp War Pro Res Arm Lab Res Qua Sec Active Infowar (turns) 19975 | 11279 716 198 357 278 183 178 766 17 183 187 848 15 . 117 . 29 235 679 638 76 342 241 130 156 199 . . 52 42 380 923 531 Optics 1098 | . . . . . . . 657 17 183 187 54 . . . . . . . . . . . . . . . . . . . . . Sensors 5590 | . . . . 31 183 178 498 . . 182 848 15 . 117 . 29 235 679 638 76 342 241 130 156 199 . . 52 42 380 339 . Terrain 1586 | 1586 . . . . . . . . . . . . . . . . . . . . . . . . . . . . . . . . Seismic 11376 | 9693 716 198 357 247 . . . . . . . . . . . . . . . . . . . . . . . . . . . 165 Cloaking 1115 | . . . . . . . . . . . . . . . . . . . . . . . . . . . . . . . 584 531 Robot Analysis Total 5 | . . . . . . . . . . . . . . 1 . . . . . 4 . . . . . . . . . . . . Derelict Logs Recovered 4 | . . . . . . . . . . . . . . . . . . 2 2 . . . . . . . . . . . . . Drone Launches . | . . . . . . . . . . . . . . . . . . . . . . . . . . . . . . . . . Drone Recoveries . | . . . . . . . . . . . . . . . . . . . . . . . . . . . . . . . . . Exploration | -11 -10 -10 -9 -9 -9 -8 -8 -7 -7 -6 -6 -6 -6 -6 -5 -5 -5 -5 -5 -5 -4 -4 -4 -4 -4 -3 -3 -3 -3 -2 -2 -2 ------------- Run | Yrd Mat Min Mat Min Exi Min Mat Fac DSF Fac Ext Cet Arc Hub Fac Was Fac Upp Upp Zhi Pro Fac Upp Upp War Pro Res Arm Lab Res Qua Sec Turns Passed 25494 | 11745 716 198 357 279 183 178 766 17 194 289 927 461 191 1151 544 200 240 679 638 78 354 244 130 156 395 119 364 56 588 1002 1034 1021 Spaces Moved 15005 | 1075 438 94 232 217 150 127 520 14 102 607 1078 189 129 804 337 195 259 937 487 140 358 391 324 351 728 331 614 93 363 826 1259 1236 Core 190 | 7 . . . . . . . . . . 1 . . . . 136 46 . . . . . . . . . . . . . . . Treads 1088 | 1068 20 . . . . . . . . . . . . . . . . . . . . . . . . . . . . . . . Legs 2990 | . 418 94 232 217 150 127 110 14 35 . 75 189 129 804 337 59 . . . . . . . . . . . . . . . . Wheels . | . . . . . . . . . . . . . . . . . . . . . . . . . . . . . . . . . Hover 7106 | . . . . . . . 410 . . . . . . . . . . . . 70 358 391 324 351 728 331 614 93 363 826 1259 988 Flight 3383 | . . . . . . . . . 67 607 1002 . . . . . 213 937 487 70 . . . . . . . . . . . . Fastest Speed 24 | 50 120 120 105 120 120 120 48 123 28 28 24 120 120 116 115 50 42 45 42 42 42 35 35 35 35 36 35 38 41 33 33 38 Average Speed 70 | 159 121 120 112 120 120 120 74 123 65 28 33 120 120 119 118 68 45 51 110 44 42 35 35 35 35 36 37 40 109 62 39 60 Slowest Speed 550 | 160 160 120 120 120 120 120 240 123 280 28 550 120 120 120 120 190 50 205 122 100 42 42 35 35 106 36 42 100 181 111 100 186 Overloaded Moves . | . . . . . . . . . . . . . . . . . . . . . . . . . . . . . . . . . Propulsion Burnouts . | . . . . . . . . . . . . . . . . . . . . . . . . . . . . . . . . . Robots Hopped 1 | . . . . . . . . . . . 1 . . . . . . . . . . . . . . . . . . . . . Potential Cave-ins 23 | . . . . . . . . . . . . . . . . . . . . . . . . 2 . . 1 . . . 17 3 Cave-ins Triggered 2 | . . . . . . . . . . . . . . . . . . . . . . . . . . . . . . . 1 1 Teleports 3 | . . . . . . . . . . . . . . . . . . . . . . . . . . . . 1 . . 1 1 Microwarps 14 | . . . . . . . . . . . . . . . . . . . . . . . . . . . . . . . . 14 Exploration Rate (%) 54 | 93 60 27 33 51 51 36 35 . 77 15 96 77 85 74 12 86 7 90 57 60 53 13 52 58 88 57 27 10 99 26 62 65 Regions Visited 32 Branch Regions 20 Pre-discovered Areas 4 | . . . . . . . . . . . . . . . . . . . 1 3 . . . . . . . . . . . . Known Exits Taken 26 | . . . 1 1 1 1 1 1 . 1 1 1 1 1 . . 1 1 1 1 1 1 1 1 1 1 1 1 1 1 1 . Unknown Exits Taken 3 | 1 1 1 . . . . . . . . . . . . . . . . . . . . . . . . . . . . . . Scrap Searched 12 | . . . . 1 . . . . . . . . . . . . . 3 2 . 2 . 1 2 . 1 . . . . . . Spaces Dug 342 | 5 . . 7 . . . 2 . . 7 . . . 153 . . 3 2 2 . . 2 . 5 . . 11 5 3 6 106 23 Terrain Destroyed 1824 | 5 4 . 40 27 . 32 7 . 14 7 7 2 2 353 9 . 3 3 2 . . 2 . 8 . . 86 5 37 6 1082 81 Melee 58 | . . . . . . . . . . 7 . . . . . . 3 2 2 . . 2 . 5 . . 8 2 . 6 13 8 Projectile 237 | 5 . . 3 . . . 7 . . . . 2 2 11 9 . . 1 . . . . . 3 . . 22 3 3 . 123 43 AOE 1529 | . 4 . 37 27 . 32 . . 14 . 7 . . 342 . . . . . . . . . . . . 56 . 34 . 946 30 Terrain Rammed . | . . . . . . . . . . . . . . . . . . . . . . . . . . . . . . . . . Walls Destroyed . | . . . . . . . . . . . . . . . . . . . . . . . . . . . . . . . . . Machines Disabled . | . . . . . . . . . . . . . . . . . . . . . . . . . . . . . . . . . Actions | -11 -10 -10 -9 -9 -9 -8 -8 -7 -7 -6 -6 -6 -6 -6 -5 -5 -5 -5 -5 -5 -4 -4 -4 -4 -4 -3 -3 -3 -3 -2 -2 -2 --------- Run | Yrd Mat Min Mat Min Exi Min Mat Fac DSF Fac Ext Cet Arc Hub Fac Was Fac Upp Upp Zhi Pro Fac Upp Upp War Pro Res Arm Lab Res Qua Sec Total 28783 | 11061 557 145 307 232 153 146 825 14 215 699 1558 394 154 914 421 244 371 1119 579 153 553 490 330 363 861 330 706 107 489 1273 1708 1312 Wait 12560 | 9949 63 30 32 9 4 14 216 . 81 37 297 185 7 41 7 21 99 163 83 . 183 69 3 . 72 . 30 2 54 387 299 123 Move 14736 | 1074 437 93 231 216 149 126 519 13 101 606 1075 188 128 803 337 194 258 936 486 139 357 390 323 350 727 330 613 92 362 825 1257 1001 Hop 1 | . . . . . . . . . . . 1 . . . . . . . . . . . . . . . . . . . . . Pick Up 118 | 8 7 . 5 . . . 8 . 5 2 5 1 3 6 12 . 1 . . 3 2 6 . . 3 . 7 . 8 3 9 14 Fast Attach 168 | 7 . . 4 1 . . 9 . 8 8 13 2 2 3 3 8 4 4 4 6 . 7 . . 5 . 2 . 6 11 17 34 Attach 119 | . 2 1 2 . . . 9 1 2 2 12 . . 3 9 2 3 2 . 1 2 4 . 1 1 . 5 5 10 5 20 15 Detach 59 | . . . . . . . 4 . 2 2 6 . . . 1 3 2 2 . . 1 2 . 1 1 . 2 4 3 2 12 9 Swap 72 | 4 3 2 4 . . . 4 . . 1 5 2 2 7 6 2 . . . 1 . 2 . . 2 . 3 1 1 7 5 8 Drop 179 | . 10 1 11 1 . . 11 . 6 7 10 2 6 9 10 4 . 1 3 3 . 6 . . 6 . 3 . 5 13 19 32 Fire 481 | 19 35 18 18 3 . 6 45 . 10 12 53 14 6 42 34 10 . 4 . . 8 2 . 3 1 . 16 1 20 1 41 59 Melee 142 | . . . . . . . . . . 7 8 . . . . . 4 7 3 . . 2 4 8 . . 24 2 20 19 23 11 Ram 1 | . . . . . . . . . . . . . . . . . . . . . . . . . . . . . . . . 1 Kick . | . . . . . . . . . . . . . . . . . . . . . . . . . . . . . . . . . Crush . | . . . . . . . . . . . . . . . . . . . . . . . . . . . . . . . . . Escape Stasis 75 | . . . . . . . . . . 15 54 . . . . . . . . . . . . . . . . . . . 1 5 Rewire 70 | . . . . . . . . . . . 19 . . . 2 . . . . . . . . . 43 . 1 . . . 5 . Trap 2 | . . . . 2 . . . . . . . . . . . . . . . . . . . . . . . . . . . . Miscellaneous . | . . . . . . . . . . . . . . . . . . . . . . . . . . . . . . . . . Route ------- -11/Scrapyard -10/Materials (discovered 3 exits: *Mat x2 / [*Min]) -10/Mines -9/Materials -9/Mines -9/Exiles -8/Mines -8/Materials (discovered 3 exits: *Fac x3) -7/Factory -7/DSF -6/Factory -6/Extension (discovered 2 exits: *Fac / *Cet) -6/Cetus (discovered 2 exits: *Fac / *Arc) -6/Archives (discovered 2 exits: *Fac / *Hub) -6/Hub_04(d) (discovered 2 exits: *Fac x2) -5/Factory -5/Waste -5/Factory (discovered 6 exits: Fac x4 / *Upp x2) -5/Upper Caves -5/Upper Caves -5/Zhirov -4/Proximity Caves -4/Factory (discovered 4 exits: *Res x2 / *Upp x2) -4/Upper Caves -4/Upper Caves -4/Warlord -3/Proximity Caves -3/Research (discovered 5 exits: *Res x2 / *Arm / *Tes x2) -3/Armory -3/Lab -2/Research -2/Quarantine (discovered 2 exits: *Sec / *Frg) -2/Section 7 History --------- Turn | Location | Event 4 | -11/Scrapyard | Discovered new exit (range 14) 4856 | -11/Scrapyard | Assembled infested the area 11746 | -11/Scrapyard | Entered Materials 11747 | -10/Materials | Build established: Mutant 11949 | -10/Materials | Discovered new exit (range 14) 12208 | -10/Materials | Discovered new exit (range 16) 12376 | -10/Materials | Discovered new exit (range 13) 12462 | -10/Materials | Entered Mines 12537 | -10/Mines | Assisted by bots powering up and referring to "LRC-V3" 12623 | -10/Mines | Discovered new exit (range 9) 12660 | -10/Mines | Entered Materials 12660 | -9/Materials | Accompanied by 2 allies 12660 | -9/Materials | Evolved 2 slots: Propulsion x1, Utility x1 12883 | -9/Materials | Identified exit to Mines 12933 | -9/Materials | Destroyed 7 combat bots 13017 | -9/Materials | Entered Mines 13017 | -9/Mines | Accompanied by 2 allies 13046 | -9/Mines | Found a hidden stash of uninstalled traps 13262 | -9/Mines | Found a damaged Exp. Sensor Array with a note attached 13265 | -9/Mines | Found Prototype Device 13265 | -9/Mines | Identified Exp. Sensor Array 13282 | -9/Mines | Deemed a non-threat by the Exiles lab entrance 13282 | -9/Mines | Discovered new exit (range 5) 13285 | -9/Mines | Identified exit to Exiles 13296 | -9/Mines | Entered Exiles 13296 | -9/Exiles | Accompanied by 2 allies 13326 | -9/Exiles | Met 8R-AWN 13344 | -9/Exiles | Met EX-HEX 13384 | -9/Exiles | Met EX-BIN 13396 | -9/Exiles | Met EX-DEC 13462 | -9/Exiles | Discovered new exit (range 10) 13474 | -9/Exiles | Identified exit to Mines 13479 | -9/Exiles | Entered Mines 13479 | -8/Mines | Accompanied by 2 allies 13635 | -8/Mines | Discovered new exit (range 6) 13641 | -8/Mines | Identified exit to Materials 13657 | -8/Mines | Entered Materials 13657 | -8/Materials | Accompanied by 2 allies 13657 | -8/Materials | Evolved 2 slots: Propulsion x1, Utility x1 13837 | -8/Materials | Repaired Hover Unit+ 14071 | -8/Materials | Build established: Scout 14151 | -8/Materials | Garrison activated, responded to threat 14176 | -8/Materials | Identified exit to Factory 14423 | -8/Materials | Entered Factory 14423 | -7/Factory | Evolved 2 slots: Power x1, Propulsion x1 14439 | -7/Factory | Identified exit to DSF 14440 | -7/Factory | Entered DSF 14464 | -7/DSF | Build established: Hacker-Mutant 14517 | -7/DSF | Additional patrols routed to DSF 14627 | -7/DSF | Discovered new exit (range 16) 14633 | -7/DSF | Identified exit to Factory 14634 | -7/DSF | Entered Factory 14634 | -6/Factory | Evolved 2 slots: Utility x2 14694 | -6/Factory | Fabricated Wave Gun (x2) 14917 | -6/Factory | Discovered new exit (range 21) 14923 | -6/Factory | Identified exit to Extension 14923 | -6/Factory | Entered Extension 14970 | -6/Extension | Rescued a captive Derelict 14972 | -6/Extension | Rescued a captive Derelict 14976 | -6/Extension | Build established: Hacker-Scout 15425 | -6/Extension | Spotted B-75 Beast 15469 | -6/Extension | Lost 5 allies 15503 | -6/Extension | Destroyed B-75 Beast 15512 | -6/Extension | Spotted B-75 Beast 15535 | -6/Extension | Discovered new exit (range 16) 15536 | -6/Extension | Discovered new exit (range 14) 15544 | -6/Extension | Identified exit to Cetus 15558 | -6/Extension | Rescued a captive Derelict 15562 | -6/Extension | Rescued A7 15564 | -6/Extension | Disrupted transfer network 15570 | -6/Extension | Lost 8 parts (2p3n2u1w) 15600 | -6/Extension | Rescued a captive Derelict 15601 | -6/Extension | Rescued a captive Derelict 15634 | -6/Extension | Rescued a captive Derelict 15664 | -6/Extension | Energy Cycler disabled 15850 | -6/Extension | Entered Cetus 15850 | -6/Cetus | Accompanied by 2 allies (A7) 15855 | -6/Cetus | Acquired a Cetus Manufacturing Module code from A7 15873 | -6/Cetus | Spotted Cetus Guard 15874 | -6/Cetus | Spotted Cetus Guard 15882 | -6/Cetus | Allies destroyed Cetus Guard 15889 | -6/Cetus | Spotted Cetus Guard 15896 | -6/Cetus | Allies destroyed Cetus Guard 15965 | -6/Cetus | Escorted A7 to Cetus Mainframe 16000 | -6/Cetus | Build established: Scavenger-Mutant 16000 | -6/Cetus | Started Cetus Manufacturing Module 16025 | -6/Cetus | Manufactured an Enhanced Grunt 16050 | -6/Cetus | Manufactured an Enhanced Grunt 16075 | -6/Cetus | Manufactured an Enhanced Grunt 16100 | -6/Cetus | Manufactured an Enhanced Grunt 16125 | -6/Cetus | Manufactured an Enhanced Grunt 16158 | -6/Cetus | Discovered new exit (range 15) 16189 | -6/Cetus | Spotted Cetus Guard 16189 | -6/Cetus | Spotted Cetus Guard 16192 | -6/Cetus | Spotted Cetus Guard 16193 | -6/Cetus | Spotted Cetus Guard 16198 | -6/Cetus | Allies destroyed Cetus Guard 16201 | -6/Cetus | Allies destroyed Cetus Guard 16202 | -6/Cetus | Allies destroyed Cetus Guard 16205 | -6/Cetus | Destroyed Cetus Guard 16214 | -6/Cetus | Discovered new exit (range 16) 16221 | -6/Cetus | Met Revision 17 16305 | -6/Cetus | Identified exit to Archives 16311 | -6/Cetus | Entered Archives 16311 | -6/Archives | Accompanied by 7 allies (A7) 16316 | -6/Archives | Received a hacking code to weaken MAIN.C 16383 | -6/Archives | Discovered new exit (range 14) 16419 | -6/Archives | Unable to access archive contents 16447 | -6/Archives | Identified exit to Factory 16475 | -6/Archives | Discovered new exit (range 13) 16493 | -6/Archives | Identified exit to Hub_04(d) 16502 | -6/Archives | Entered Hub_04(d) 16502 | -6/Hub_04(d) | Accompanied by 4 allies 16538 | -6/Hub_04(d) | Discovered exit to Factory (range 15) 16623 | -6/Hub_04(d) | Spotted B-75 Beast 16753 | -6/Hub_04(d) | Allies destroyed B-75 Beast 16853 | -6/Hub_04(d) | Discovered exit to Factory (range 16) 17484 | -6/Hub_04(d) | Network Hub disabled 17553 | -6/Hub_04(d) | Spotted Lightning 17579 | -6/Hub_04(d) | Spotted Lightning 17581 | -6/Hub_04(d) | Spotted Lightning 17632 | -6/Hub_04(d) | Network Hub disabled 17632 | -6/Hub_04(d) | Spotted Lightning 17632 | -6/Hub_04(d) | Spotted Lightning 17632 | -6/Hub_04(d) | Spotted Lightning 17634 | -6/Hub_04(d) | System corruption reached 10% 17636 | -6/Hub_04(d) | Spotted Lightning 17642 | -6/Hub_04(d) | Spotted Lightning 17649 | -6/Hub_04(d) | Spotted Lightning 17653 | -6/Hub_04(d) | Entered Factory 17653 | -5/Factory | Evolved 2 slots: Propulsion x1, Weapon x1 17681 | -5/Factory | Lost 8 parts (2p1n3u2w) 18197 | -5/Factory | Sucked down chute 18197 | -5/Factory | Entered Waste 18202 | -5/Waste | Spotted C-40 Crusher 18212 | -5/Waste | EMP discharged 18213 | -5/Waste | Destroyed C-40 Crusher 18215 | -5/Waste | Spotted C-40 Crusher 18223 | -5/Waste | Crushed by Compactor (1 part destroyed, 2 dropped) 18237 | -5/Waste | Crushed by Compactor (1 part destroyed, 2 dropped) 18240 | -5/Waste | Crushed by Compactor (1 part destroyed, 1 dropped) 18243 | -5/Waste | Crushed by Compactor (1 part destroyed, 1 dropped) 18246 | -5/Waste | Crushed by Compactor (1 part destroyed, 1 dropped) 18268 | -5/Waste | Spotted C-40 Crusher 18273 | -5/Waste | Crushed by Compactor (1 part destroyed, 2 dropped) 18304 | -5/Waste | Lost 6 parts (1p3n1u1w) 18312 | -5/Waste | EMP discharged 18312 | -5/Waste | System corruption reached 10% 18312 | -5/Waste | Found Prototype Launcher 18312 | -5/Waste | Identified Tactical Quantum Warhead 18324 | -5/Waste | Crushed by Compactor (1 part destroyed, 1 dropped) 18339 | -5/Waste | Spotted C-40 Crusher 18349 | -5/Waste | Spotted C-40 Crusher 18373 | -5/Waste | Crushed by Compactor (1 part destroyed, 1 dropped) 18382 | -5/Waste | Spotted C-40 Crusher 18392 | -5/Waste | Discovered new exit (range 12) 18397 | -5/Waste | Entered Factory 18530 | -5/Factory | Identified exit to Factory 18563 | -5/Factory | Build established: Mutant 18567 | -5/Factory | Fabricated Lgt. Quantum Reactor? 18613 | -5/Factory | Identified exit to Upper Caves 18637 | -5/Factory | Entered Upper Caves 18900 | -5/Upper Caves | Attracted the attention of an 0b10 checkpoint 18949 | -5/Upper Caves | Encountered a Warlord checkpoint 19203 | -5/Upper Caves | Discovered new exit (range 9) 19206 | -5/Upper Caves | Identified exit to Upper Caves 19234 | -5/Upper Caves | Learned Factory terminal intel 19240 | -5/Upper Caves | Learned location of 1 exit from Upper Caves 19316 | -5/Upper Caves | Entered another Upper Caves area 19317 | -5/Upper Caves | Identified exit to Zhirov 19463 | -5/Upper Caves | Entered an active Warlord outpost 19463 | -5/Upper Caves | A Commander dispatched an escort 19468 | -5/Upper Caves | Learned location of 1 exit from Factory 19468 | -5/Upper Caves | Learned Factory trap positions 19468 | -5/Upper Caves | Learned Factory terminal intel 19468 | -5/Upper Caves | Learned Factory garrison access intel 19607 | -5/Upper Caves | Learned location of Armory (-3) 19631 | -5/Upper Caves | Learned Factory stockpile data 19954 | -5/Upper Caves | Entered Zhirov 19954 | -5/Zhirov | Discovered new exit (range 3) 19955 | -5/Zhirov | Identified exit to Proximity Caves 19963 | -5/Zhirov | Met Zhirov 19971 | -5/Zhirov | Learned location of Quarantine (-2) 19971 | -5/Zhirov | Learned location of Testing (-3) 19971 | -5/Zhirov | Learned location of Command (-1) 19975 | -5/Zhirov | Zhirov requested help retrieving the SGEMP Prototype 20007 | -5/Zhirov | Found Alien Artifact 20007 | -5/Zhirov | Identified Integrated Reactor 20007 | -5/Zhirov | Installed Integrated Reactor, increased core energy generation (+10) 20015 | -5/Zhirov | Found Alien Artifact 20032 | -5/Zhirov | Entered Proximity Caves 20166 | -4/Proximity Caves | Received a Behemoth hack from an annoying Tinkerer 20233 | -4/Proximity Caves | Spotter reported a threat 20240 | -4/Proximity Caves | Spotter reported a threat 20300 | -4/Proximity Caves | Core integrity fell below 50% 20336 | -4/Proximity Caves | Spotter reported a threat 20385 | -4/Proximity Caves | Discovered exit to Factory (range 3) 20386 | -4/Proximity Caves | Entered Factory 20386 | -4/Factory | Evolved 2 slots: Utility x1, Weapon x1 20387 | -4/Factory | Identified exit to Research 20388 | -4/Factory | Loaded intel: 126 trap records 20390 | -4/Factory | Loaded intel: 25 terminal locations 20391 | -4/Factory | Loaded intel: 4 garrison access locations 20394 | -4/Factory | Identified exit to Upper Caves 20407 | -4/Factory | Discovered exit to Research (range 15) 20556 | -4/Factory | Found Prototype Hackware 20617 | -4/Factory | Repaired Hvy. Pick 20630 | -4/Factory | Entered Upper Caves 20756 | -4/Upper Caves | Discovered new exit (range 13) 20759 | -4/Upper Caves | Identified exit to Upper Caves 20760 | -4/Upper Caves | Entered another Upper Caves area 20913 | -4/Upper Caves | Discovered new exit (range 7) 20915 | -4/Upper Caves | Identified exit to Warlord 20916 | -4/Upper Caves | Entered Warlord 20991 | -4/Warlord | Met Warlord 21016 | -4/Warlord | Warlord's base attacked by MAIN.C 21116 | -4/Warlord | Identified Exp. Hacking Suite 21119 | -4/Warlord | Found Prototype Hackware 21119 | -4/Warlord | Identified Ghost Barrier 21171 | -4/Warlord | Found Prototype Energy Gun 21171 | -4/Warlord | Identified Vortex Rail 21174 | -4/Warlord | Found Vortex Rail 21176 | -4/Warlord | Found Prototype Piercing Weapon 21176 | -4/Warlord | Identified Vortex Lance 21282 | -4/Warlord | Opened side exit 21307 | -4/Warlord | Discovered new exit (range 11) 21310 | -4/Warlord | Identified exit to Proximity Caves 21311 | -4/Warlord | Entered Proximity Caves 21406 | -3/Proximity Caves | Build established: Wizard-Mutant 21411 | -3/Proximity Caves | Spotted B-86 Titan 21425 | -3/Proximity Caves | Discovered exit to Research (range 15) 21430 | -3/Proximity Caves | Entered Research 21430 | -3/Research | Evolved 2 slots: Utility x2 21444 | -3/Research | Identified exit to Armory 21444 | -3/Research | Identified exit to Testing 21512 | -3/Research | Spotted B-86 Titan 21523 | -3/Research | Spotted B-86 Titan 21620 | -3/Research | Discovered new exit (range 9) 21630 | -3/Research | Revision forces began assault on 0b10 21685 | -3/Research | Discovered new exit (range 5) 21688 | -3/Research | Identified exit to Research 21733 | -3/Research | Lost 3 allies 21747 | -3/Research | Fabricated S-43 Plague? 21794 | -3/Research | Entered Armory 21838 | -3/Armory | Identified Transdimensional Reconstructor 21838 | -3/Armory | Warped through subspace to slip node 21838 | -3/Armory | Discovered new exit (range 1) 21838 | -3/Armory | Identified exit to Lab 21850 | -3/Armory | Entered Lab 21850 | -3/Lab | Discovered exit to Research (range 9) 21864 | -3/Lab | Unable to decrypt terminal 21864 | -3/Lab | Opened the door to a hidden lab 21865 | -3/Lab | Gained access to the hidden lab's interior 21874 | -3/Lab | Detected by scanners 21890 | -3/Lab | Confronted by A5 21971 | -3/Lab | Found Prototype Energy Cannon 21971 | -3/Lab | Identified Potential Cannon 21991 | -3/Lab | Lost 5 parts (1n3u1w) 22002 | -3/Lab | System corruption reached 10% 22029 | -3/Lab | Found Prototype Protection 22029 | -3/Lab | Identified Med. Regenerative Plating 22054 | -3/Lab | Destroyed A5 22077 | -3/Lab | Lost 6 parts (2p3n1u) 22113 | -3/Lab | Unable to decrypt terminal 22203 | -3/Lab | Unable to decrypt terminal 22204 | -3/Lab | Found Alien Artifact 22204 | -3/Lab | Identified LC Capacitor 22263 | -3/Lab | Found Prototype Hackware 22268 | -3/Lab | Found Prototype Protection 22272 | -3/Lab | Found Prototype Energy Gun 22272 | -3/Lab | Identified Tachyon Dispersion Ray 22295 | -3/Lab | Build established: Hacker-Mutant 22307 | -3/Lab | Found Alien Artifact 22319 | -3/Lab | Found Transdimensional Reconstructor 22330 | -3/Lab | Found Integrated Reactor 22340 | -3/Lab | Found Alien Artifact 22417 | -3/Lab | Found Prototype Special Weapon 22438 | -3/Lab | Entered Research 22438 | -2/Research | Warlord forces began assault on 0b10 22438 | -2/Research | Evolved 2 slots: Propulsion x1, Utility x1 22484 | -2/Research | Met up with Warlord 22548 | -2/Research | Research machine network offline 22597 | -2/Research | Installed Integrated Reactor, increased core energy generation (+10) 22624 | -2/Research | Identified Core Reset Matrix 22624 | -2/Research | Identified Core Regenerator 22624 | -2/Research | Used Core Reset Matrix 22631 | -2/Research | Borebot progress halted 22898 | -2/Research | Spotted Combat Programmer 22916 | -2/Research | Spotted Combat Programmer 23024 | -2/Research | Discovered new exit (range 12) 23028 | -2/Research | Identified exit to Quarantine 23044 | -2/Research | Spotted Executioner 23101 | -2/Research | Borebot progress halted 23187 | -2/Research | Build established: Hacker-Sprinter 23439 | -2/Research | Warlord invited to help at Command 23439 | -2/Research | Given Cave Seal Controls access code 23440 | -2/Research | Entered Quarantine 23441 | -2/Quarantine | Detected hypermatrix surge 23441 | -2/Quarantine | Sensed 17 artifacts in vicinity 23442 | -2/Quarantine | Identified Gui. Remote Datajack 23469 | -2/Quarantine | Found Subatomic Replicator 23514 | -2/Quarantine | Lost 4 allies 23521 | -2/Quarantine | Garrison activated, responded to threat 23538 | -2/Quarantine | Found Sigix Terminator 23582 | -2/Quarantine | Found Phase Redirector 23633 | -2/Quarantine | Found Dimensional Node Initializer 23637 | -2/Quarantine | Found Hpw. Transdimensional Reconstructor 23648 | -2/Quarantine | Found Core Cannon 23669 | -2/Quarantine | Initialized slip node 23843 | -2/Quarantine | Crushed by falling debris 23864 | -2/Quarantine | Found Prototype Device 23864 | -2/Quarantine | Identified Exp. Focal Shield 23885 | -2/Quarantine | Found Prototype Hackware 23885 | -2/Quarantine | Identified Exp. System Shield 23913 | -2/Quarantine | Met incapacitated Sigix Warrior 23913 | -2/Quarantine | Lockdown squad dispatched 23915 | -2/Quarantine | Acquired the access code to the Sigix quarantine chamber 23916 | -2/Quarantine | Unlocked Sigix quarantine chamber 23917 | -2/Quarantine | Found Sigix Containment Pod 23919 | -2/Quarantine | Warped through subspace to slip node 23946 | -2/Quarantine | Spotted Fortress 23972 | -2/Quarantine | Discovered new exit (range 6) 23972 | -2/Quarantine | Discovered new exit (range 7) 23974 | -2/Quarantine | Identified exit to Section 7 23975 | -2/Quarantine | Identified exit to Protoforge 24076 | -2/Quarantine | Fired Sigix Terminator 24106 | -2/Quarantine | Build established: Hacker-Mutant 24446 | -2/Quarantine | Intercept squad dispatched 24473 | -2/Quarantine | Spotted Tracker 24474 | -2/Quarantine | Entered Section 7 24475 | -2/Section 7 | Detected hypermatrix surge 24475 | -2/Section 7 | Sensed 14 artifacts in vicinity 24499 | -2/Section 7 | Found Integrated Dissipator 24499 | -2/Section 7 | Installed Integrated Dissipator, increased core heat dissipation (+20) 24513 | -2/Section 7 | Found Microwarp Drive 24599 | -2/Section 7 | Found Core Reset Matrix 24602 | -2/Section 7 | Sensed 11 artifacts in vicinity 24609 | -2/Section 7 | Crushed by falling debris 24780 | -2/Section 7 | Core integrity fell below 50% 24785 | -2/Section 7 | Spotted B-99 Colossus 24816 | -2/Section 7 | Found LRC Storage 24816 | -2/Section 7 | Installed LRC Storage, increased inventory capacity (+2) 24985 | -2/Section 7 | Activated Sigix Exoskeleton 24985 | -2/Section 7 | Received instructions from Sigix Warrior 25015 | -2/Section 7 | Intercept squad dispatched 25021 | -2/Section 7 | Spotted Executioner 25022 | -2/Section 7 | Destroyed Executioner 25022 | -2/Section 7 | Spotted Executioner 25024 | -2/Section 7 | Allies destroyed Executioner 25035 | -2/Section 7 | Spotted Tracker 25036 | -2/Section 7 | Spotted Tracker 25037 | -2/Section 7 | Destroyed Tracker 25044 | -2/Section 7 | Allies destroyed Tracker 25071 | -2/Section 7 | Spotted Striker 25071 | -2/Section 7 | Spotted Striker 25083 | -2/Section 7 | Destroyed Striker 25090 | -2/Section 7 | Allies destroyed Striker 25098 | -2/Section 7 | Spotted Combat Programmer 25101 | -2/Section 7 | Allies destroyed Combat Programmer 25118 | -2/Section 7 | Spotted Striker 25118 | -2/Section 7 | Spotted Striker 25119 | -2/Section 7 | Found Sigix Sheargun 25123 | -2/Section 7 | Found Sigix Sheargun 25131 | -2/Section 7 | Spotted Combat Programmer 25131 | -2/Section 7 | Allies destroyed Combat Programmer 25236 | -2/Section 7 | Warped through subspace 25237 | -2/Section 7 | Used Core Regenerator, restored core integrity (+362) 25251 | -2/Section 7 | Sigix Exoskeleton integrity reduced to 80% 25303 | -2/Section 7 | Sigix Exoskeleton integrity reduced to 60% 25370 | -2/Section 7 | Build established: Scavenger-Mutant 25379 | -2/Section 7 | Spotted Striker 25379 | -2/Section 7 | Spotted Executioner 25399 | -2/Section 7 | Sigix Exoskeleton integrity reduced to 40% 25405 | -2/Section 7 | Allies destroyed Striker 25415 | -2/Section 7 | Allies destroyed Executioner 25441 | -2/Section 7 | Lost 7 parts (2p4n1u) 25459 | -2/Section 7 | Sigix Exoskeleton integrity reduced to 20% 25470 | -2/Section 7 | Spotted S7 Guard 25471 | -2/Section 7 | Spotted Investigator 25474 | -2/Section 7 | Spotted Striker 25474 | -2/Section 7 | Scanned by Researcher 25475 | -2/Section 7 | Destroyed Investigator 25475 | -2/Section 7 | Core integrity fell below 20% 25475 | -2/Section 7 | System corruption reached 10% 25484 | -2/Section 7 | Spotted Executioner 25495 | -2/Section 7 | Core destroyed Last Messages --------------- Master. 25489_ Quantum Shear penetrates H-88 Terminator. 25490_ Microwarped (distance 5). 25491_ System corrupted: Heat flow error (+170). 25491_ Microwarped (distance 3). [Achievement: Vwoop!] 25492_ Slug penetrates Sigix Warrior. 25492_ Microwarped (distance 13). 25493_ Microwarped (distance 18). 25493_ P-80 Master stasis bubble strength at 116. 25493_ P-80 Master stasis bubble strength at 102. 25494_ C-45 Heavy ARC bursts open, deploying its payload. 25494_ P-80 Master unfolds itself. 25494_ H-88 Terminator unfolds itself. 25494_ P-80 Master unfolds itself. 25494_ E-15 Imp unfolds itself. 25494_ Microwarped (distance 34). Map ----- +----------------------------------------------------+ | ??????????????????# # " %! # #????? | | ?????????????????## " # # ]]" #????? | | ?????????????????#" "%"+ " % # ! #????? | | ?????????????????## %" # # "%"########????? | | ?????????????????#" % # " #?# ####????? | | ??????? ????????## ########"# #? ?????? | | ??????? ??????#" # """""?????? | | ??????? ????##== # """""?????? | | ????? #####%[! + """""?????? | | ????? %==!! # !? | | ????? [%%=!####+###"# # ! !! | | ??? ???""""" % *|= #? # #? | | ?????""" # # #?####+###### | | ????""" !!! # / #???????????? | | ?? !!! # " " # #???????????? | | """"""" !!! # "T"g ; ^^ #???????????? | | """"""" ! # """ ; #???????????? | | """"""" ####;##;;# #???????????? | | ;# #;##]%# #???????????? | | " " #mhp !=!%# ##??????????? | | """"" #g pe !!# ???????????? | | """" h gl! [ %# ???????????? | | # m!=%!!!# ???????????? | | ! #Y!! Y ==# ???????????? | | "#l!h m =p#; #########????? | | =%! ""%+!@""Y"!!!# # ! #????? | | ##########" "###?## %%%# %" ! p## " = #????? | | ??????????????????# " "# p !gh[## # [ #????? | | ??????????????????# ?######[|=;# " ?????? | | ??????????????????# ??????? #= # "" ""??????? | | ??????????????????# ????????###! [!# ""S"" #????? | | ??????????????????# ??????????#! *%# """" #????? | | ??????????????????#??????????##] =[ #????? | | ?????????????????????????????# ####????? | | ???????????????????????????### / #???????? | | ???????????????????????????# #??????? | | ???????????????????????????# ##??????? | | ???????????????????????????# #??????? | | ???????????????????????????# #??????? | | ???????????????????????????# #??????? | | ???????????????????????????# ##??????? | | ???????????????????????????### # #???????? | | | | | | | | | | | | | | | | | +----------------------------------------------------+ Best States ------------- Heat Dissipation 116 Energy Generation 70 Energy Capacity 580 Matter Stores 300 Matter Capacity 300 Sight Range 22 Robot Scan Range 20 Terrain Scan Range 16 Terrain Scan Density 10 Cloak Strength 3 Base Temperature (-) 200 Corruption Containment 8 Armor Coverage 450 Resistance: KI 50 Resistance: TH 20 Resistance: EX 20 Resistance: EM 20 Resistance: I 20 Resistance: S 20 Resistance: P 20 Core Shielding 20 Propulsion Shielding 66 Utility Shielding 66 Melee Speed Boost 20 Phase Shifting 15 Evasion (%) 72 Targeting Accuracy 16 Target Analysis 12 Recoil Reduction 2 Kinecelleration 40 Offensive Hacking 40 Defensive Hacking 36 Item Schematics ----------------- None Robot Schematics ------------------ None Fabricated ------------ Wave Gun | x2 | -6/Factory | Preloaded Lgt. Quantum Reactor | x2 | -5/Factory | Preloaded S-43 Plague | x4 | -3/Research Repaired ---------- Hover Unit | 40% | -8/Materials Hvy. Pick | 33% | -4/Factory Studied --------- Lgt. Antimatter Reactor | -2/Section 7 | Hacked Enh. Nova Cannon | -2/Section 7 | Hacked Lgt. Quantum Reactor | -2/Section 7 | Hacked Gravmag Array | -2/Section 7 | Hacked Antigrav System | -2/Section 7 | Hacked Imp. Gyrokinetic Inverter | -2/Section 7 | Hacked Power Maul | -2/Section 7 | Hacked Alien Tech Used ----------------- Integrated Reactor Transdimensional Reconstructor LC Capacitor Core Reset Matrix Phase Redirector Core Cannon Dimensional Node Initializer Sigix Terminator Integrated Dissipator LRC Storage Sigix Sheargun High-powered Transdimensional Reconstructor Core Regenerator Microwarp Drive Achievements -------------- Vwoop! Window Shopping Challenges ------------ None Game ------ Seed MetaCloakingPod Manual? 0 Play Time 03:21:28 Cumulative 239.8 hours Start 2025.12.19 @ 21:39:28 End 2025.12.21 @ 15:17:41 Sessions 13 Manual Loads 0 Difficulty Adventurer Special Mode None Game No. 184 Rogue 10 Adventurer 174 Explorer 0 Win Type - Total 16 Types 7/0/6/3/0/0/0/0/0/0 Lore% 74 Gallery% 71 Achievement% 55 Wizard Run 0 Options --------- Layout 1 ASCII 0 Keyboard 0 Movement Mouse Keybinds 0 Fullscreen 1 Font 24/Smallcaps Map View 50x35 Zoom Use 0% Tactical HUD 1 Map Filters NONE Filters NONE Steam 1 RUN: 67e91ae2-55e4-419a-a40a-538f1b0b6884